{"text_format":"1","workbook":"xlsx","n_sheets":22,"sheets":["CAMPEONES","CAMPEONES ","AL GALOPE","SUPER CHASQUI","RANKING 2015","CAMPEONES 2015","EQUIPOS","ELITE ABIERTA","ELITE JUVENIL","ELITE MENORES","ELITE CABALLOS","AMATEUR ABIERTA","AMATEUR JUVENIL","AMATEUR MENORES","CABALLOS NOVICIOS","PR ABIERTA","PR JUVENIL","PR MENORES","PR INFANTIL","PR ADULTO-MENOR","BINOMIOS ABIERTA","BINOMIOS LIVIANOS"],"not_rendered":{"charts":0,"images":0,"macros":1,"external_links":0,"defined_names":148,"comments":0,"pivot_tables":0},"unopened":[],"bounds":{"document_bytes":16777216,"sheet_cells":100000,"rows_first":2000,"rows_last":500,"rows_between":2000,"halvings":0,"cell_chars":16384,"cell_head_chars":4096},"cells_cut":0,"cells_raw":0,"read":"whole","date_system":"1900"}

{"sheet":"CAMPEONES","index":0,"n_rows":79,"n_cols":11,"rows_kept":79,"cut":false,"hidden":true,"merged":[[1,0,1,10],[2,5,2,10],[7,0,7,3],[19,0,19,3],[25,0,25,3],[68,0,68,2],[13,0,13,3],[74,0,74,2],[37,0,37,3],[43,0,43,3],[49,0,49,2],[55,0,55,2],[61,0,61,2],[31,0,31,3]]}
[]
["CAMPEONATO DE EQUIPOS                                        "]
[null,null,"EQUIPO","CAPITAN","PUNTAJE","               JINETES"]
[1,"CAMPEÓN NACIONAL","CEPSA AMAROK","FELIPE PORTILLA",1628.8969999999999,"RIBADENEIRA SOFIA","RIBADENEIRA ARTURO","CANDO MARIO","URIBE  CARLOS JOSE","PORTILLA FELIPE","QUIROZ ORLANDO"]
[2,"VICECAMPEÓN NACIONAL","EKOS NEGOCIOS.COM 1","MAURICIO MURILLO",1604.299,"RICARDO DUEÑAS","MORILLO MAURICIO","RUIZ ILIANA","SERGIO MORILLO","BRAUER MARIA FERNANDA"]
[3,null,"EQUINOCCIAL 1","BERNARDO DARQUEA",1349.7159999999999,"JUAN JOSE RECALDE","RAFAELLA DARQUEA","BERNARDO DARQUEA","KARINA NEUMANN","DELGADO JUAN","ANDRES DARQUEA"]
[]
["CAMPEONATO NACIONAL DE JINETES ABIERTA (CHASQUI II)           "]
[null,null,"EQUIPO","PUNTAJE"]
[1,"CAMPEÓN NACIONAL","MORILLO MAURICIO",779.37159999999994]
[2,"VICECAMPEÓN NACIONAL","RECALDE JUAN JOSE",762.553]
[3,null,"WEEMAELS NATHALIE",590.99799999999993]
[]
["CAMPEONATO NACIONAL DE JINETES MASTER (CHASQUI II)           "]
[null,null,"EQUIPO","PUNTAJE"]
[1,"CAMPEÓN NACIONAL","ALMEIDA AYALA HECTOR",159.52000000000001]
[2,"VICECAMPEÓN NACIONAL"]
[3]
[]
["CAMPEONATO NACIONAL DE JINETES JUVENIL (CHASQUI II)           "]
[null,null,"EQUIPO","PUNTAJE"]
[1,"CAMPEÓN NACIONAL","MORENO NICOLAS",496.91999999999996]
[2,"VICECAMPEÓN NACIONAL","RIBADENEIRA SOFIA",488.24]
[3,null,"MONROY MARIA FERNANDA",318.38600000000002]
[]
["CAMPEONATO DE BINOMIOS"]
[null,"JINETE","CABALLO","PUNTAJE"]
[1,"MORILLO MAURICIO ","MISTERIO",779.37159999999994]
[2,"RECALDE JUAN JOSE ","BOMBON",762.553]
[3,"RIBADENEIRA SOFIA","AR FAISAN",486.24]
[]
["MEJOR CONDICIÓN FISICA"]
[null,"CABALLO","PROPIETARIO","PUNTAJE"]
[1,"MISTERIO","MAURICIO MORILLO",529.73599999999999]
[2,"BOMBON","JUAN JOSE RECALDE",525.27249999999992]
[3,"AR FAISAN","RIBADENEIRA SOFIA",415.65999999999997]
[]
["CAMPEONATO DE CABALLOS ABIERTA (PESO MÍNIMO 75 KG)"]
[null,"CABALLO","PROPIETARIO","PUNTAJE"]
[1,"MISTERIO","MORILLO MAURICIO ",779.37159999999994]
[2,"BOMBON","RECALDE JUAN JOSE ",762.553]
[3,"CG ALLASKI","WEEMAELS NATHALIE",590.99799999999993]
[]
["CAMPEONATO DE CABALLOS JUVENIL- MASTER (SIN PESO MÍNIMO)"]
[null,"CABALLO","PROPIETARIO","PUNTAJE"]
[1,"DAMASCO","MORENO NICOLAS",413.14]
[2,"AR FAISAN","RIBADENEIRA SOFIA",321.96000000000004]
[3,"GITANILLO","MONROY BAROJA MARIA",295.548]
[]
["CAMPEONATO JINETES ABIERTA CHASQUI I"]
[null,"JINETE","PUNTAJE"]
[1,"ILIANA RUIZ",361.67500000000001]
[2,"ORLANDO QUIROZ",332.0412]
[3,"RICARDO DUEÑAS",323.76409999999998]
[]
["CAMPEONATO JINETES MASTER CHASQUI I"]
[null,"JINETE","PUNTAJE"]
[1,"GUSTAVO HIDALGO",366.048]
[2,"EDUARDO MONROY",124.13800000000001]
[3,"GALO RECALDE",82.752600000000001]
[]
["CAMPEONATO JINETES JUVENIL CHASQUI I"]
[null,"JINETE","PUNTAJE"]
[1,"PEDRO JOSE GUARDERAS",271.98]
[2,"PEDRO JOSE BACA",124.13800000000001]
[3,"WRAY THOMAS",119.96]
[]
[]
["CAMPEONATO PRUEBA PROMOCIONAL JINETES"]
[null,"JINETE","PUNTAJE"]
[1,"BELEN GUARDERAS",92.713999999999999]
[2,"ANDRES AYALA",90.88]
[3,"MOLESTINA NICOLAS",88.867999999999995]
[]
["CAMPEONATO INFANTIL JINETES"]
[null,"JINETE","PUNTAJE"]
[1,"JARAMILLO BENITO JOSE",175.9786]
[2,"CHIRIBOGA ALFREDO",175.375]
[3,"JARAMILLO MANUELA",162.74429999999998]

{"sheet":"CAMPEONES ","index":1,"n_rows":104,"n_cols":12,"rows_kept":104,"cut":false,"hidden":true,"merged":[[17,1,17,4],[33,6,33,9],[49,6,49,9],[65,6,65,9],[57,6,57,10],[25,1,25,4],[25,6,25,10],[73,6,73,10],[97,6,97,10],[17,6,17,9],[41,6,41,9],[81,6,81,9],[89,6,89,9],[1,1,1,4],[3,1,3,4],[9,1,9,4],[3,6,3,16],[4,11,4,16],[9,6,9,9],[1,6,1,16]]}
[]
[null,"CAMPEONATO ECUATORIANO DE ENDURANCE",null,null,null,null,"                                                    CAMPEONATO NACIONAL DE ENDURANCE ECUADOR"]
[]
[null,"CATEGORÍA ELITE ABIERTA  CHASQUI 2",null,null,null,null,"CAMPEONATO DE EQUIPOS                                        "]
[null,null,null,"JINETE","CABALLO",null,null,null,"EQUIPO","CAPITAN","PUNTAJE","               JINETES"]
[null,1,"CAMPEÓN NACIONAL",null,null,null,1,"CAMPEÓN NACIONAL"]
[null,2,"VICECAMPEÓN NACIONAL",null,null,null,2,"VICECAMPEÓN NACIONAL"]
[null,3,null,null,null,null,3]
[]
[null,"CATEGORÍA ELITE JUVENIL  CHASQUI 2",null,null,null,null,"CATEGORÍA ELITE ABIERTA        "]
[null,null,null,"JINETE","CABALLO",null,null,null,"JINETE","PUNTAJE"]
[null,1,"CAMPEÓN NACIONAL",null,null,null,1,"CAMPEÓN NACIONAL"]
[null,2,"VICECAMPEÓN NACIONAL",null,null,null,2,"VICECAMPEÓN NACIONAL"]
[null,3,null,null,null,null,3]
[null,null,null,null,null,null,4]
[null,null,null,null,null,null,5]
[]
[null,"CATEGORÍA ELITE ABIERTA  CHASQUI 1",null,null,null,null,"CATEGORÍA ELITE JUVENIL       "]
[null,null,null,"JINETE","CABALLO",null,null,null,"JINETE","PUNTAJE"]
[null,1,"CAMPEÓN NACIONAL",null,null,null,1,"CAMPEÓN NACIONAL"]
[null,2,"VICECAMPEÓN NACIONAL",null,null,null,2,"VICECAMPEÓN NACIONAL"]
[null,3,null,null,null,null,3]
[null,null,null,null,null,null,4]
[null,null,null,null,null,null,5]
[]
[null,"CATEGORÍA ELITE JUVENIL  CHASQUI 1",null,null,null,null,"CATEGORÍA ELITE CABALLOS     "]
[null,null,null,"JINETE","CABALLO",null,null,null,"JINETE","JINETE/DUEÑO","PUNTAJE"]
[null,1,"CAMPEÓN NACIONAL",null,null,null,1,"CAMPEÓN NACIONAL"]
[null,2,"VICECAMPEÓN NACIONAL",null,null,null,2,"VICECAMPEÓN NACIONAL"]
[null,3,null,null,null,null,3]
[null,null,null,null,null,null,4]
[null,null,null,null,null,null,5]
[]
[null,null,null,null,null,null,"CATEGORÍA NOVICIOS ABIERTA        "]
[null,null,null,null,null,null,null,null,"JINETE","PUNTAJE"]
[null,null,null,null,null,null,1,"CAMPEÓN NACIONAL"]
[null,null,null,null,null,null,2,"VICECAMPEÓN NACIONAL"]
[null,null,null,null,null,null,3]
[null,null,null,null,null,null,4]
[null,null,null,null,null,null,5]
[]
[null,null,null,null,null,null,"CATEGORÍA NOVICIOS JUVENIL"]
[null,null,null,null,null,null,null,null,"JINETE","PUNTAJE"]
[null,null,null,null,null,null,1,"CAMPEÓN NACIONAL"]
[null,null,null,null,null,null,2,"VICECAMPEÓN NACIONAL"]
[null,null,null,null,null,null,3]
[null,null,null,null,null,null,4]
[null,null,null,null,null,null,5]
[]
[null,null,null,null,null,null,"CATEGORÍA NOVICIOS MENORES     "]
[null,null,null,null,null,null,null,null,"JINETE","PUNTAJE"]
[null,null,null,null,null,null,1,"CAMPEÓN NACIONAL"]
[null,null,null,null,null,null,2,"VICECAMPEÓN NACIONAL"]
[null,null,null,null,null,null,3]
[null,null,null,null,null,null,4]
[null,null,null,null,null,null,5]
[]
[null,null,null,null,null,null,"CATEGORÍA NOVICIOS CABALLOS      "]
[null,null,null,null,null,null,null,null,"JINETE","JINETE/DUEÑO","PUNTAJE"]
[null,null,null,null,null,null,1,"CAMPEÓN NACIONAL"]
[null,null,null,null,null,null,2,"VICECAMPEÓN NACIONAL"]
[null,null,null,null,null,null,3]
[null,null,null,null,null,null,4]
[null,null,null,null,null,null,5]
[]
[null,null,null,null,null,null,"CATEGORÍA INFANTIL"]
[null,null,null,null,null,null,null,null,"JINETE","PUNTAJE"]
[null,null,null,null,null,null,1,"CAMPEÓN NACIONAL"]
[null,null,null,null,null,null,2,"VICECAMPEÓN NACIONAL"]
[null,null,null,null,null,null,3]
[null,null,null,null,null,null,4]
[null,null,null,null,null,null,5]
[]
[null,null,null,null,null,null,"CATEGORÍA BINOMIOS   "]
[null,null,null,null,null,null,null,null,"JINETE","CABALLO","PUNTAJE"]
[null,null,null,null,null,null,1,"CAMPEÓN NACIONAL"]
[null,null,null,null,null,null,2,"VICECAMPEÓN NACIONAL"]
[null,null,null,null,null,null,3]
[null,null,null,null,null,null,4]
[null,null,null,null,null,null,5]
[]
[null,null,null,null,null,null,"MEJOR CONDICIÓN ABIERTA    "]
[null,null,null,null,null,null,null,null,"CABALLO","PUNTAJE"]
[null,null,null,null,null,null,1,"CAMPEÓN NACIONAL"]
[null,null,null,null,null,null,2,"VICECAMPEÓN NACIONAL"]
[null,null,null,null,null,null,3]
[null,null,null,null,null,null,4]
[null,null,null,null,null,null,5]
[]
[null,null,null,null,null,null,"MEJOR CONDICIÓN JUVENIL"]
[null,null,null,null,null,null,null,null,"JINETE","PUNTAJE"]
[null,null,null,null,null,null,1,"CAMPEÓN NACIONAL"]
[null,null,null,null,null,null,2,"VICECAMPEÓN NACIONAL"]
[null,null,null,null,null,null,3]
[null,null,null,null,null,null,4]
[null,null,null,null,null,null,5]
[]
[null,null,null,null,null,null,"SUPER CABALLO"]
[null,null,null,null,null,null,null,null,"JINETE","JINETE/DUEÑO","PUNTAJE"]
[null,null,null,null,null,null,1,"CAMPEÓN NACIONAL"]
[null,null,null,null,null,null,2,"VICECAMPEÓN NACIONAL"]
[null,null,null,null,null,null,3]
[null,null,null,null,null,null,4]
[null,null,null,null,null,null,5]

{"sheet":"AL GALOPE","index":2,"n_rows":23,"n_cols":11,"rows_kept":23,"cut":false,"hidden":true,"merged":[[4,4,4,8],[3,4,3,8],[1,1,1,11],[6,3,6,5],[7,3,7,5],[6,7,6,9],[7,7,7,9],[9,10,9,11],[10,10,10,11],[12,1,12,2],[12,4,12,5],[12,7,12,8],[12,10,12,11],[10,1,10,2],[9,1,9,2],[9,4,9,5],[10,4,10,5],[9,7,9,8],[10,7,10,8],[16,1,16,2],[16,4,16,5],[16,7,16,8],[16,10,16,11],[13,1,13,2],[13,4,13,5],[13,7,13,8],[13,10,13,11],[15,1,15,2],[15,4,15,5],[15,7,15,8],[15,10,15,11],[18,1,18,2],[19,1,19,2],[18,4,18,5],[19,4,19,5],[18,7,18,8],[19,7,19,8],[18,10,18,11],[19,10,19,11],[21,3,21,5],[22,3,22,5],[21,7,21,9],[22,7,22,9]]}
[]
[null,"                                               AL GALOPE:             CAMPEONATO  DE ENDURANCE ECUADOR 2015"]
[]
[null,null,null,null,"EQUIPO AL GALOPE TRICAMPEÓN NACIONAL "]
[null,null,null,null,"EQUIPO AL GALOPE 1 TERCER LUGAR"]
[]
[null,null,null,"PABLO VINTIMILLA & BIANCA",null,null,null,"MARÍA CONSUELO VELEZ & KAFIR HA"]
[null,null,null,"VICECAMPEONES NACIONALES DE ENDURANCE",null,null,null,"TERCEROS EN CAMPEONATO NACIONAL"]
[]
[null,"JOSÉ DANIEL ANDRADE",null,null,"BERNARDA GONZÁLEZ",null,null,"JAIME BURBANO VILLAVICENCIO",null,null,"HECTOR ALMEIDA & CENTAURO"]
[null,"CAMPEON JUVENIL RANKING NACIONAL",null,null,"VICECAMPEONA JUVENIL RANKING NACIONAL",null,null,"VICECAMPEON NACIONAL CHASQUI 2",null,null,"SUPER CHASQUI 1 BINOMIOS  (1000 Km)"]
[]
[null,"BERNARDA Y JOSÉ DANIEL",null,null,"HÉCTOR ALMEIDA PARDO",null,null,"JOSÉ DANIEL ANDRADE",null,null,"HECTOR ALMEIDA AYALA"]
[null,"INTERVIENIERON EN EL CAMPEONATO MUNDIAL JUVENIL",null,null,"VICECAMPEÓN PROMOCIONAL ABIERTA",null,null,"SUPER CHASQUI 2 (2000 K)",null,null,"SUPER CHASQUI 2 (2000 K)"]
[]
[null,"ALEXADER GÓMEZ",null,null,"BERNARDA GONZÁLEZ",null,null,"MAURICIO NOBOA",null,null,"OSWALDO KOPPEL"]
[null,"SUPER CHASQUI 1 CABALLOS (1000 Km)",null,null,"SUPER CHASQUI 1 (1000 Km)",null,null,"SUPER CHASQUI 1 (1000 Km)",null,null,"SUPER CHASQUI 1 (1000 Km)"]
[]
[null,"ALEXADER GÓMEZ",null,null,"PV RIGUEL / DE PABLO",null,null,"CENTAURO",null,null,"BIANCA / DE PABLO"]
[null,"CLASIFICADO AL MUNDIAL JUVENIL 2015",null,null,"VICECAMPEON   DE RANKING NACIONAL",null,null,"SUPER CHASQUI 1 CABALLOS (1000 Km)",null,null,"CUARTA EN RANKING  NACIONAL"]
[]
[null,null,null,"PABLO,   MARÍA CONSUELO,   HÉCTOR",null,null,null,"BERNARDA, JOSÉ DANIEL, ALEXANDER"]
[null,null,null,"REPRESENTANTES NACIONALES AL MUNDIAL DUBAI 2016",null,null,null,"REPRESENTANTES NACIONALES JUVENILES A PRUEBAS INTERNCIONALES"]

{"sheet":"SUPER CHASQUI","index":3,"n_rows":108,"n_cols":5,"rows_kept":108,"cut":false,"hidden":false,"merged":[[1,2,1,4],[36,1,36,3],[42,1,42,3],[65,1,65,4],[93,1,93,4],[3,1,3,3],[9,1,9,3],[15,1,15,3],[21,1,21,3],[30,1,30,3]]}
[]
[null,null,"PREMIO SUPER CHASQUI DE ENDURANCE"]
[]
[null,"SUPER CHASQUI 3 JINETES"]
[null,null,"JINETE"]
[null,1]
[null,2]
[null,3]
[]
[null,"SUPER CHASQUI 3 CABALLOS"]
[null,null,"JINETE","CABALLO"]
[null,1]
[null,2]
[null,3]
[]
[null,"SUPER CHASQUI 3 BINOMIOS"]
[null,null,"JINETE","CABALLO"]
[null,1,"PORTILLA FELIPE","AR ALBATSYN"]
[null,2,"BURBANO JAIME","CENTAURO"]
[null,3]
[]
[null,"SUPER CHASQUI 2 JINETES (2000 Km)"]
[null,null,"JINETE","KILOMETRAJE"]
[null,null,"RIBADENEIRA SOFIA",2766]
[null,null,"WEEMAELS NATHALIE",2528]
[null,null,"ALMEIDA AYALA HECTOR",2273]
[null,null,"NEUMANN KARINA",2108]
[null,null,"ANDRADE JOSE DANIEL",2084]
[null,null,"LETORT DUEÑAS BERNARDA",2065]
[]
[null,"SUPER CHASQUI 2 CABALLOS  (2000 Km)"]
[null,null,"JINETE","KILOMETRAJE"]
[null,1]
[null,2]
[null,3]
[]
[null,"SUPER CHASQUI 2 BINOMIOS  (2000 Km)"]
[null,null,"JINETE","KILOMETRAJE"]
[null,1]
[null,2]
[null,3]
[]
[null,"SUPER CHASQUI 1 JINETES (1000 Km)"]
[null,null,"JINETE","KILOMETRAJE"]
[null,1,"RIBADENEIRA ARTURO",1987]
[null,2,"DARQUEA RAFAELA",1980]
[null,3,"RECALDE JUAN JOSE",1967]
[null,4,"GUARDERAS BARAHONA SEBASTIAN",1856]
[null,5,"GOMEZ MICHILENA ALEXANDER",1837]
[null,6,"MORILLO MAURICIO",1788]
[null,7,"GONZALEZ BERNARDA",1649]
[null,8,"MORENO CORDOVEZ DANIELA",1496]
[null,9,"WRAY VINUEZA MATEO",1474]
[null,10,"MONROY BAROJA MARIA FERNANDA",1444]
[null,11,"DARQUEA BERNARDO",1443]
[null,12,"NOBOA MAURICIO",1403]
[null,13,"SERRANO VALLEJO FELIPE",1378]
[null,14,"MORILLO SERGIO",1367]
[null,15,"MORABOWEN CESAR",1297]
[null,16,"KOPPEL OSWALDO",1284]
[null,17,"CORNEJO BURNEO MANUEL",1252]
[null,18,"CANDO MARIO",1003]
[null,19]
[null,20]
[]
[null,"SUPER CHASQUI 1 CABALLOS  (1000 Km)"]
[null,null,"JINETE","PROPIETARIO/JINETE","KILOMETRAJE"]
[null,1,"AR FAISAN","ARTURO RIBADENEIRA",1994]
[null,2,"CENTAURO","HECTOR ALMEIDA",1792]
[null,3,"FHARA CONEJA","DARQUEA BERNARDO",1727]
[null,4,"FRODO","RIBADENEIRA ARTURO",1526]
[null,5,"MISTERIO","MORILLO MAURICIO",1491]
[null,6,"BOM BOM","JUAN JOSE RECALDE",1369]
[null,7,"CG ALLASKI","WEEMAELS NATHALIE",1364]
[null,8,"QUITA PENAS","MORILLO MAURICIO",1339]
[null,9,"WISKY","MAURICIO NOBOA",1016]
[null,10,"TRUENO","DARQUEA BERNARDO",1011]
[null,11]
[null,12]
[null,13]
[null,14]
[null,15]
[null,16]
[null,17]
[null,18]
[null,19]
[null,20]
[null,21]
[null,22]
[null,23]
[null,24]
[null,25]
[]
[null,"SUPER CHASQUI 1 BINOMIOS  (1000 Km)"]
[null,null,"JINETE","CABALLO","KILOMETRAJE"]
[null,1,"HECTOR ALMEIDA","CENTAURO",1546]
[null,2,"WEEMAELS NATHALIE","CG ALLASKI",1484]
[null,3,"MORILLO MAURICIO","MISTERIO",1375]
[null,4,"DARQUEA BERNARDO","FHARA CONEJA",1362]
[null,5,"RIBADENEIRA SOFIA","AR FAISAN",1181]
[null,6]
[null,7]
[null,8]
[null,9]
[null,10]
[null,11]
[null,12]
[null,13]

{"sheet":"RANKING 2015","index":4,"n_rows":124,"n_cols":11,"rows_kept":124,"cut":false,"hidden":false,"merged":[[0,0,0,10],[109,0,109,3],[69,0,69,4],[8,0,8,3],[16,0,16,3],[28,0,28,4],[52,0,52,3],[60,0,60,4],[36,0,36,3],[44,0,44,3],[24,0,24,3],[77,0,77,4],[85,0,85,3],[93,0,93,3],[101,0,101,3],[3,5,3,10],[2,0,2,10],[117,0,117,4]]}
["                                                  RANKING NACIONAL DE ENDURANCE ECUADOR 2015"]
[]
["CAMPEONATO DE EQUIPOS                                        "]
[null,null,"EQUIPO","CAPITAN","PUNTAJE","               JINETES"]
[1,"CAMPEÓN NACIONAL",{"$f":"+EQUIPOS!C8","v":"AL GALOPE"},{"$f":"+EQUIPOS!D8","v":"HECTOR ALMEIDA AYALA "},{"$f":"+EQUIPOS!U8","v":2483.067},{"$f":"+EQUIPOS!E8","v":"BERNARDA GONZÁLEZ"},{"$f":"+EQUIPOS!F8","v":"MARÍA CLAUDIA LOYOLA"},{"$f":"+EQUIPOS!G8","v":"MAURICIO NOBOA"},{"$f":"+EQUIPOS!H8","v":"ANDRADE JOSE DANIEL"},{"$f":"+EQUIPOS!I8","v":"ALMEIDA AYALA HECTOR"},{"$f":"+EQUIPOS!J8","v":"ALEXANDER GÓMEZ"}]
[2,"VICECAMPEÓN NACIONAL",{"$f":"+EQUIPOS!C9","v":"SELECT ECUADOR 1"},{"$f":"+EQUIPOS!D9","v":"JOSÉ LETORT"},{"$f":"+EQUIPOS!U9","v":2074.3739999999998},{"$f":"+EQUIPOS!E9","v":"LETORT DUEÑAS JOSE IGNACIO"},{"$f":"+EQUIPOS!F9","v":"SERRANO ARMANDO JOSE"},{"$f":"+EQUIPOS!G9","v":"BERNARDA LETORT"},{"$f":"+EQUIPOS!H9","v":"JOSÉ LETORT"},{"$f":"+EQUIPOS!I9","v":"MANUELA JARAMILLO"},{"$f":"+EQUIPOS!J9","v":"BENITO JOSÉ JARAMILLO"}]
[3,null,{"$f":"+EQUIPOS!C10","v":"AL GALOPE 1"},{"$f":"+EQUIPOS!D10","v":"OSWALDO KOPPEL"},{"$f":"+EQUIPOS!U10","v":2070.232},{"$f":"+EQUIPOS!E10","v":"MALO TORAL DAVID"},{"$f":"+EQUIPOS!F10","v":"VINTIMILLA SERRANO PABLO XAVIER"},{"$f":"+EQUIPOS!G10","v":"VELEZ MENA MARIA CONSUELO"},{"$f":"+EQUIPOS!H10","v":"BURBANO JAIME"},{"$f":"+EQUIPOS!I10","v":"OSWALDO KOPPEL"},{"$f":"+EQUIPOS!J10","v":"HÉCTOR ALMEIDA PARDO"}]
[]
["CATEGORÍA ELITE ABIERTA        "]
[null,null,"JINETE","PUNTAJE"]
[1,"CAMPEÓN NACIONAL",{"$f":"+'ELITE ABIERTA'!D8","v":"RIBADENEIRA ARTURO"},{"$f":"+'ELITE ABIERTA'!O8","v":1101.78}]
[2,"VICECAMPEÓN NACIONAL",{"$f":"+'ELITE ABIERTA'!D9","v":"VINTIMILLA PABLO"},{"$f":"+'ELITE ABIERTA'!O9","v":935.99}]
[3,null,{"$f":"+'ELITE ABIERTA'!D10","v":"MORABOWEN CESAR"},{"$f":"+'ELITE ABIERTA'!O10","v":775.18100000000004}]
[4,null,{"$f":"+'ELITE ABIERTA'!D11","v":"PORTILLA FELIPE"},{"$f":"+'ELITE ABIERTA'!O11","v":719.03399999999999}]
[5,null,{"$f":"+'ELITE ABIERTA'!D12","v":"LOZADA ARMANDO"},{"$f":"+'ELITE ABIERTA'!O12","v":658.7}]
[]
["CATEGORÍA ELITE JUVENIL       "]
[null,null,"JINETE","PUNTAJE"]
[1,"CAMPEÓN NACIONAL",{"$f":"+'ELITE JUVENIL'!D8","v":"ANDRADE JOSE DANIEL"},{"$f":"+'ELITE JUVENIL'!O8","v":1138.24}]
[2,"VICECAMPEÓN NACIONAL",{"$f":"+'ELITE JUVENIL'!D9","v":"GONZALEZ BERNARDA"},{"$f":"+'ELITE JUVENIL'!O9","v":718.83799999999997}]
[3,null,{"$f":"+'ELITE JUVENIL'!D10","v":"LETORT DUEÑAS JOSE IGNACIO"},{"$f":"+'ELITE JUVENIL'!O10","v":659.6}]
[4,null,{"$f":"+'ELITE JUVENIL'!D11","v":"DUBACH CAROLINA"},{"$f":"+'ELITE JUVENIL'!O11","v":636.13600000000008}]
[5,null,{"$f":"+'ELITE JUVENIL'!D12","v":"LETORT DUEÑAS BERNARDA"},{"$f":"+'ELITE JUVENIL'!O12","v":542.73}]
[]
["CATEGORÍA ELITE MENORES"]
[null,null,"JINETE","PUNTAJE"]
[1,"CAMPEÓN NACIONAL",{"$f":"+'ELITE MENORES'!D8","v":"JARAMILLO BENITO"},{"$f":"+'ELITE MENORES'!O8","v":524.26}]
[]
["CATEGORÍA ELITE CABALLOS     "]
[null,null,"JINETE","JINETE/DUEÑO","PUNTAJE"]
[1,"CAMPEÓN NACIONAL",{"$f":"+'ELITE CABALLOS'!D8","v":"FRODO"},{"$f":"+'ELITE CABALLOS'!E8","v":"ARTURO RIBADENEIRA"},{"$f":"+'ELITE CABALLOS'!P8","v":602.20000000000005}]
[2,"VICECAMPEÓN NACIONAL",{"$f":"+'ELITE CABALLOS'!D9","v":"PV RIGUEL"},{"$f":"+'ELITE CABALLOS'!E9","v":"PABLO VINTIMILLA"},{"$f":"+'ELITE CABALLOS'!P9","v":558.25}]
[3,null,{"$f":"+'ELITE CABALLOS'!D10","v":"ZT SATFANTDU"},{"$f":"+'ELITE CABALLOS'!E10","v":"ARTURO RIBADENEIRA"},{"$f":"+'ELITE CABALLOS'!P10","v":546.67599999999993}]
[4,null,{"$f":"+'ELITE CABALLOS'!D11","v":"BIANCA"},{"$f":"+'ELITE CABALLOS'!E11","v":"PABLO VINTIMILLA"},{"$f":"+'ELITE CABALLOS'!P11","v":545.72}]
[5,null,{"$f":"+'ELITE CABALLOS'!D12","v":"SHAKIRA"},{"$f":"+'ELITE CABALLOS'!E12","v":"LETORT DUEÑAS JOSE IGNACIO"},{"$f":"+'ELITE CABALLOS'!P12","v":498.8}]
[]
["CATEGORÍA AMATEUR ABIERTA        "]
[null,null,"JINETE","PUNTAJE"]
[1,"CAMPEÓN NACIONAL",{"$f":"+'AMATEUR ABIERTA'!D8","v":"ESPINOZA JUAN SEBASTIAN"},{"$f":"+'AMATEUR ABIERTA'!O8","v":592.54999999999995}]
[2,"VICECAMPEÓN NACIONAL",{"$f":"+'AMATEUR ABIERTA'!D9","v":"FALCONI FRANCISCO"},{"$f":"+'AMATEUR ABIERTA'!O9","v":389.50199999999995}]
[3,null,{"$f":"+'AMATEUR ABIERTA'!D10","v":"ALVEAR JUAN CARLOS"},{"$f":"+'AMATEUR ABIERTA'!O10","v":308.65600000000001}]
[4,null,{"$f":"+'AMATEUR ABIERTA'!D11","v":"SAMPER ALVARO"},{"$f":"+'AMATEUR ABIERTA'!O11","v":306.36}]
[5,null,{"$f":"+'AMATEUR ABIERTA'!D12","v":"MOYA MIGUEL ANGEL"},{"$f":"+'AMATEUR ABIERTA'!O12","v":276.36599999999999}]
[]
["CATEGORÍA AMATEUR JUVENIL"]
[null,null,"JINETE","PUNTAJE"]
[1,"CAMPEÓN NACIONAL",{"$f":"+'AMATEUR JUVENIL'!D8","v":"MASAPANTA KEVIN"},{"$f":"+'AMATEUR JUVENIL'!O8","v":243.5}]
[2,"VICECAMPEÓN NACIONAL",{"$f":"+'AMATEUR JUVENIL'!D9","v":"DARQUEA ANA MARIA"},{"$f":"+'AMATEUR JUVENIL'!O9","v":175.07999999999998}]
[3,null,{"$f":"+'AMATEUR JUVENIL'!D10","v":"HURTADO HECTOR"},{"$f":"+'AMATEUR JUVENIL'!O10","v":171.51999999999998}]
[4,null,{"$f":"+'AMATEUR JUVENIL'!D11","v":"BERREZUETA DELGADO PABLO SANTIAGO"},{"$f":"+'AMATEUR JUVENIL'!O11","v":170}]
[5,null,{"$f":"+'AMATEUR JUVENIL'!D12","v":"DAVALOS JOAQUINA"},{"$f":"+'AMATEUR JUVENIL'!O12","v":168.20000000000002}]
[]
["CATEGORÍA AMATEUR MENORES     "]
[null,null,"JINETE","PUNTAJE"]
[1,"CAMPEÓN NACIONAL",{"$f":"+'AMATEUR MENORES'!D8","v":"TORRES UGALDE RAFAEL ESTEBAN"},{"$f":"+'AMATEUR MENORES'!O8","v":223.48}]
[2,"VICECAMPEÓN NACIONAL",{"$f":"+'AMATEUR MENORES'!D9","v":"TORRES GIORDANO ALEJANDRO"},{"$f":"+'AMATEUR MENORES'!O9","v":181.2}]
[3,null,{"$f":"+'AMATEUR MENORES'!D10","v":"MORABOWEN MOSQUERA CESAR"},{"$f":"+'AMATEUR MENORES'!O10","v":166.48599999999999}]
[4,null,{"$f":"+'AMATEUR MENORES'!D11","v":"JIJON SOFIA"},{"$f":"+'AMATEUR MENORES'!O11","v":164.28}]
[5,null,{"$f":"+'AMATEUR MENORES'!D12","v":"MALO TOMAS"},{"$f":"+'AMATEUR MENORES'!O12","v":160.39999999999998}]
[]
["CATEGORÍA NOVICIOS CABALLOS      "]
[null,null,"JINETE","JINETE/DUEÑO","PUNTAJE"]
[1,"CAMPEÓN NACIONAL",{"$f":"+'CABALLOS NOVICIOS'!D8","v":"KALA"},"ESPINOZA JUAN SEBASTIAN",{"$f":"+'CABALLOS NOVICIOS'!P8","v":592.54999999999995}]
[2,"VICECAMPEÓN NACIONAL",{"$f":"+'CABALLOS NOVICIOS'!D9","v":"AS GITANA"},"SERRANO ARMANDO",{"$f":"+'CABALLOS NOVICIOS'!P9","v":426.25599999999997}]
[3,null,{"$f":"+'CABALLOS NOVICIOS'!D10","v":"CARRUZO"},"SAMPER ALVARO",{"$f":"+'CABALLOS NOVICIOS'!P10","v":306.36}]
[4,null,{"$f":"+'CABALLOS NOVICIOS'!D11","v":"CALEÑA CMB"},"ULLOA GORDON FERNANDO",{"$f":"+'CABALLOS NOVICIOS'!P11","v":302.54599999999999}]
[5,null,{"$f":"+'CABALLOS NOVICIOS'!D12","v":"AR SEGOVIA"},"RIBADENEIRA ARTURO",{"$f":"+'CABALLOS NOVICIOS'!P12","v":299.77999999999997}]
[]
[]
["CATEGORÍA BINOMIOS  ABIERTA"]
[null,null,"JINETE","CABALLO","PUNTAJE"]
[1,"CAMPEÓN NACIONAL",{"$f":"+'BINOMIOS ABIERTA'!D8","v":"MORABOWEN CESAR"},{"$f":"+'BINOMIOS ABIERTA'!F8","v":"SERENATA CMB"},{"$f":"+'BINOMIOS ABIERTA'!Q8","v":629.70499999999993}]
[2,"VICECAMPEÓN NACIONAL",{"$f":"+'BINOMIOS ABIERTA'!D9","v":"PORTILLA FELIPE"},{"$f":"+'BINOMIOS ABIERTA'!F9","v":"AR ALBATSYN"},{"$f":"+'BINOMIOS ABIERTA'!Q9","v":617.73}]
[3,null,{"$f":"+'BINOMIOS ABIERTA'!D10","v":"ESPINOZA JUAN SEBASTIAN"},{"$f":"+'BINOMIOS ABIERTA'!F10","v":"KALA"},{"$f":"+'BINOMIOS ABIERTA'!Q10","v":592.54999999999995}]
[4,null,{"$f":"+'BINOMIOS ABIERTA'!D11","v":"MANCHENO GALO PATRICIO"},{"$f":"+'BINOMIOS ABIERTA'!F11","v":"SICOTICO"},{"$f":"+'BINOMIOS ABIERTA'!Q11","v":572.51300000000003}]
[5,null,{"$f":"+'BINOMIOS ABIERTA'!D12","v":"RIBADENEIRA ARTURO"},{"$f":"+'BINOMIOS ABIERTA'!F12","v":"FRODO"},{"$f":"+'BINOMIOS ABIERTA'!Q12","v":481.6}]
[]
["CATEGORÍA BINOMIOS LIVIANOS"]
[null,null,"JINETE","CABALLO","PUNTAJE"]
[1,"CAMPEÓN NACIONAL",{"$f":"+'BINOMIOS LIVIANOS'!D8","v":"LETORT DUEÑAS JOSE IGNACIO"},{"$f":"+'BINOMIOS LIVIANOS'!F8","v":"SHAKIRA"},{"$f":"+'BINOMIOS LIVIANOS'!Q8","v":659.6}]
[2,"VICECAMPEÓN NACIONAL",{"$f":"+'BINOMIOS LIVIANOS'!D9","v":"LETORT DUEÑAS BERNARDA"},{"$f":"+'BINOMIOS LIVIANOS'!F9","v":"AMARETO"},{"$f":"+'BINOMIOS LIVIANOS'!Q9","v":542.73}]
[3,null,{"$f":"+'BINOMIOS LIVIANOS'!D10","v":"ANDRADE JOSE DANIEL"},{"$f":"+'BINOMIOS LIVIANOS'!F10","v":"JUPITER"},{"$f":"+'BINOMIOS LIVIANOS'!Q10","v":487.44}]
[4,null,{"$f":"+'BINOMIOS LIVIANOS'!D11","v":"GOMEZ ALEXANDER"},{"$f":"+'BINOMIOS LIVIANOS'!F11","v":"FUERTE"},{"$f":"+'BINOMIOS LIVIANOS'!Q11","v":459.62900000000002}]
[5,null,{"$f":"+'BINOMIOS LIVIANOS'!D12","v":"MORILLO SERGIO"},{"$f":"+'BINOMIOS LIVIANOS'!F12","v":"QUITA PENAS"},{"$f":"+'BINOMIOS LIVIANOS'!Q12","v":413.82}]
[]
["CATEGORÍA PROMOCIONAL ABIERTA"]
[null,null,"JINETE","PUNTAJE"]
[1,"CAMPEÓN NACIONAL",{"$f":"+'PR ABIERTA'!D8","v":"CASTILLO DIEGO"},{"$f":"+'PR ABIERTA'!O8","v":328.9}]
[2,"VICECAMPEÓN NACIONAL",{"$f":"+'PR ABIERTA'!D9","v":"ALMEIDA PARDO HECTOR"},{"$f":"+'PR ABIERTA'!O9","v":161.53000000000003}]
[3,null,{"$f":"+'PR ABIERTA'!D10","v":"LEPPERT MISHELL"},{"$f":"+'PR ABIERTA'!O10","v":142.97000000000003}]
[4,null,{"$f":"+'PR ABIERTA'!D11","v":"MONCAYO DANILO"},{"$f":"+'PR ABIERTA'!O11","v":129.74}]
[5,null,{"$f":"+'PR ABIERTA'!D12","v":"CANGAS GUILLERMO"},{"$f":"+'PR ABIERTA'!O12","v":117.70000000000002}]
[]
["CATEGORÍA PROMOCIONAL JUVENIL"]
[null,null,"JINETE","PUNTAJE"]
[1,"CAMPEÓN NACIONAL",{"$f":"+'PR JUVENIL'!D8","v":"AYMARA  LEON SANDRO"},{"$f":"+'PR JUVENIL'!O8","v":175.32}]
[2,"VICECAMPEÓN NACIONAL",{"$f":"+'PR JUVENIL'!D9","v":"BEATE VARGAS PEDRO"},{"$f":"+'PR JUVENIL'!O9","v":174.60000000000002}]
[3,null,{"$f":"+'PR JUVENIL'!D10","v":"NAVARRETE RUIZ BRAYAN"},{"$f":"+'PR JUVENIL'!O10","v":122.34}]
[4,null,{"$f":"+'PR JUVENIL'!D11","v":"VILLAMARIN ANDRES"},{"$f":"+'PR JUVENIL'!O11","v":89.39}]
[5,null,{"$f":"+'PR JUVENIL'!D12","v":"JIJON IGNACIO"},{"$f":"+'PR JUVENIL'!O12","v":83.410000000000011}]
[]
["CATEGORÍA PROMOCIONAL MENORES"]
[null,null,"JINETE","PUNTAJE"]
[1,"CAMPEÓN NACIONAL",{"$f":"+'PR MENORES'!D8","v":"BEATE VARGAS MANUELA"},{"$f":"+'PR MENORES'!O8","v":174.60000000000002}]
[2,"VICECAMPEÓN NACIONAL",{"$f":"+'PR MENORES'!D9","v":"CORREA JUAN MARTIN"},{"$f":"+'PR MENORES'!O9","v":135.07999999999998}]
[3,null,{"$f":"+'PR MENORES'!D10","v":"TAPIA RUBEN"},{"$f":"+'PR MENORES'!O10","v":48}]
[4]
[5]
[]
["CATEGORÍA PROMOCIONAL INFANTIL"]
[null,null,"JINETE","PUNTAJE"]
[1,"CAMPEÓN NACIONAL",{"$f":"+'PR INFANTIL'!D8","v":"JARAMILLO SAMUEL"},{"$f":"+'PR INFANTIL'!O8","v":193.42000000000002}]
[2,"VICECAMPEÓN NACIONAL",{"$f":"+'PR INFANTIL'!D9","v":"DONOSO JULIAN"},{"$f":"+'PR INFANTIL'!O9","v":93}]
[3,null,{"$f":"+'PR INFANTIL'!D10","v":"SALTIVERI ALEJANDRA"},{"$f":"+'PR INFANTIL'!O10","v":51.2}]
[4,null,{"$f":"+'PR INFANTIL'!D11","v":"DAVALOS REBECA"},{"$f":"+'PR INFANTIL'!O11","v":42.75}]
[5]
[]
["CATEGORÍA PROMOCIONAL ADULTO/MENOR"]
[null,null,"MENOR","ADULTOS","PUNTAJE"]
[1,"CAMPEÓN NACIONAL",{"$f":"+'PR ADULTO-MENOR'!C8","v":"RAMIREZ RAFAEL"},{"$f":"+'PR ADULTO-MENOR'!D8","v":"MORENO GABRIEL, RAMIREZ FABRICIO"},{"$f":"+'PR ADULTO-MENOR'!O8","v":149.06}]
[2,"VICECAMPEÓN NACIONAL",{"$f":"+'PR ADULTO-MENOR'!C9","v":"DARQUEA APOLO EMILIO"},{"$f":"+'PR ADULTO-MENOR'!D9","v":"MASAPANTA FABIAN, DARQUEA BERNARDO, DARQUEA RAFAELA"},{"$f":"+'PR ADULTO-MENOR'!O9","v":106.18599999999999}]
[3,null,{"$f":"+'PR ADULTO-MENOR'!C10","v":"BARAHONA MARIA EMILIA"},{"$f":"+'PR ADULTO-MENOR'!D10","v":"BARAHONA ANDRES"},{"$f":"+'PR ADULTO-MENOR'!O10","v":89.84}]
[4,null,{"$f":"+'PR ADULTO-MENOR'!C11","v":"JARAMILLO SAMUEL"},{"$f":"+'PR ADULTO-MENOR'!D11","v":"JARAMILLO BENITO"},{"$f":"+'PR ADULTO-MENOR'!O11","v":51.2}]
[5,null,{"$f":"+'PR ADULTO-MENOR'!C12","v":"MORABOWEN MOSQUERA CESAR"},{"$f":"+'PR ADULTO-MENOR'!D12","v":"SANTOS MICHAEL"},{"$f":"+'PR ADULTO-MENOR'!O12","v":26.733000000000001}]

{"sheet":"CAMPEONES 2015","index":5,"n_rows":38,"n_cols":5,"rows_kept":38,"cut":false,"hidden":false,"merged":[[1,1,1,4],[3,1,3,4],[27,1,27,4],[33,1,33,4],[9,1,9,4],[15,1,15,4],[21,1,21,4]]}
[]
[null,"CAMPEONATO ECUATORIANO DE ENDURANCE"]
[]
[null,"CATEGORÍA ELITE ABIERTA  CHASQUI 3"]
[null,null,null,"JINETE","CABALLO"]
[null,1,"CAMPEÓN NACIONAL","RIBADENEIRA ARTURO","ANGOSTURA FRODO"]
[null,2,"VICECAMPEÓN NACIONAL","VINTIMILLA PABLO","BIANCA"]
[null,3,null,"VELEZ MENA MARIA CONSUELO","KAFIR HA"]
[]
[null,"CATEGORÍA ELITE JUVENIL  CHASQUI 3"]
[null,null,null,"JINETE","CABALLO"]
[null,1,"CAMPEÓN NACIONAL"]
[null,2,"VICECAMPEÓN NACIONAL"]
[null,3]
[]
[null,"CATEGORÍA ELITE ABIERTA  CHASQUI 2"]
[null,null,null,"JINETE","CABALLO"]
[null,1,"CAMPEÓN NACIONAL","PORTILLA FELIPE","AR ALBATSYN"]
[null,2,"VICECAMPEÓN NACIONAL","BURBANO JAIME","CENTAURO"]
[null,3]
[]
[null,"CATEGORÍA ELITE JUVENIL  CHASQUI 2"]
[null,null,null,"JINETE","CABALLO"]
[null,1,"CAMPEÓN NACIONAL","LETORT JOSE IGNACIO","SHAKIRA"]
[null,2,"VICECAMPEÓN NACIONAL","LETORT BERNARDA","AMARETO"]
[null,3]
[]
[null,"CATEGORÍA ELITE ABIERTA  CHASQUI 1"]
[null,null,null,"JINETE","CABALLO"]
[null,1,"CAMPEÓN NACIONAL","FALCONI FRANCISCO","DIAMANTE"]
[null,2,"VICECAMPEÓN NACIONAL","MOYA MIGUEL","GS RASHID"]
[null,3]
[]
[null,"CATEGORÍA ELITE JUVENIL  CHASQUI 1"]
[null,null,null,"JINETE","CABALLO"]
[null,1,"CAMPEÓN NACIONAL"]
[null,2,"VICECAMPEÓN NACIONAL"]
[null,3]

{"sheet":"EQUIPOS","index":6,"n_rows":23,"n_cols":41,"rows_kept":23,"cut":false,"hidden":false,"merged":[[1,1,1,20],[6,4,6,9],[4,1,4,9],[4,10,4,20],[5,10,5,20],[2,1,2,20]]}
[]
[null,"                                                      PUNTAJE  ACUMULADO"]
[null,"                                                                   EQUIPOS"]
[]
[null,"EQUIPOS",null,null,null,null,null,null,null,null,"PUNTAJES"]
[null,null,null,null,null,null,null,null,null,null,2012]
[null,null,"EQUIPO","CAPITAN","               JINETES",null,null,null,null,null,"I CHONE","II CHONE","III CHONE","IV CHONE","V CHONE","VI CHONE","VII CHONE","VIII CHONE","IX CHONE","X CHONE","ACUMULADO"]
[null,1,"AL GALOPE","HECTOR ALMEIDA AYALA ","BERNARDA GONZÁLEZ","MARÍA CLAUDIA LOYOLA","MAURICIO NOBOA","ANDRADE JOSE DANIEL","ALMEIDA AYALA HECTOR","ALEXANDER GÓMEZ",418.4,null,null,624,572.22699999999998,478.5,null,null,389.94,null,{"$f":"SUM(K8:T8)","v":2483.067}]
[null,2,"SELECT ECUADOR 1","JOSÉ LETORT","LETORT DUEÑAS JOSE IGNACIO","SERRANO ARMANDO JOSE","BERNARDA LETORT","JOSÉ LETORT","MANUELA JARAMILLO","BENITO JOSÉ JARAMILLO",null,393.96,null,null,405.88599999999997,null,329.15800000000002,null,466.32,479.04999999999995,2074.3739999999998]
[null,3,"AL GALOPE 1","OSWALDO KOPPEL","MALO TORAL DAVID","VINTIMILLA SERRANO PABLO XAVIER","VELEZ MENA MARIA CONSUELO","BURBANO JAIME","OSWALDO KOPPEL","HÉCTOR ALMEIDA PARDO",null,412.452,null,576,null,486.75000000000006,null,null,null,595.03,2070.232,null,null,null,null,null,null,null,null,null,null,null,null,null,null,null,null,null,null,{"$f":"+$U$8-U9","v":408.69300000000021},{"$f":"VLOOKUP(B10,#REF!,3,FALSE)","v":{"$error":"#REF!"}}]
[null,4,"Cepsa Amaro de Cachafaz","RIBADENEIRA ARTURO","RIBADENEIRA ARTURO","PORTILLA FELIPE","DUBACH CAROLINA","PAEZ JOSE","RIBADENEIRA SANTIAGO","SOFÍA RIBADENEIRA",null,374.66399999999999,571.5,null,null,null,null,null,377.88,648.68999999999994,1972.7339999999999]
[null,5,"Ekosnegocios.com","MAURICIO MORILLO","NATHALIE WEEMAELS","MANUEL CORNEJO","SERGIO MORILLO","MAURICIO MORILLO",null,null,null,null,null,null,490.79999999999995,null,237.06000000000003,null,428.13,null,1155.99]
[null,6,"EQUINOCCIAL 1","DARQUE BERNARDO","GUARDERAS BARAHONA SEBASTIAN","DARQUEA RICARDO","GUARDERAS JOSE GABRIEL","RECALDE JUAN JOSE","SERRANO VALLEJO FELIPE","MASAPANTA KEVIN",null,250.45,null,null,472.98999999999995,null,null,null,261.3,null,984.74]
[null,7,"Hacienda Hato Verde","MORABOWEN CESAR","MORABOWEN CESAR","MORABOWEN MOSQUERA CESAR","ULLOA LUIS FELIPE","SIMON NICOLAS","BARAHONA ANDRES","ULLOA FERNANDO",267.91999999999996,154.77000000000001,null,null,null,null,null,null,null,null,422.68999999999994]
[null,8,"SELECT ECUADOR 2","BENITO JARAMILLO","RAMIREZ FABRICIO","RAMIREZ RAFAEL","BENITO JARAMILLO","SAMUEL JARAMILLO","NICOLAS DUEÑAS",null,null,92.862000000000009,null,null,195.02099999999996,null,null,null,null,null,287.88299999999998]
[null,9,"La Moderna","ESTEBAN ALZAMORA","JOAQUIN CORREA","JUAN MARTIN CORREA","ISABEL ALZAMORA","CAROLINA PAIMANN","CARLOS DAVALOS","MARÍA CECILIA ALZAMORA",null,null,null,null,null,null,null,null,null,null,{"$f":"SUM(K16:T16)","v":0}]
[null,10,null,null,null,null,null,null,null,null,null,null,null,null,null,null,null,null,null,null,{"$f":"SUM(K17:T17)","v":0}]
[null,11,null,null,null,null,null,null,null,null,null,null,null,null,null,null,null,null,null,null,{"$f":"SUM(K18:T18)","v":0}]
[null,12,null,null,null,null,null,null,null,null,null,null,null,null,null,null,null,null,null,null,0]
[null,13,null,null,null,null,null,null,null,null,null,null,null,null,null,null,null,null,null,null,0]
[null,14,null,null,null,null,null,null,null,null,null,null,null,null,null,null,null,null,null,null,0]
[null,15,null,null,null,null,null,null,null,null,null,null,null,null,null,null,null,null,null,null,0]
[null,16,null,null,null,null,null,null,null,null,null,null,null,null,null,null,null,null,null,null,0]

{"sheet":"ELITE ABIERTA","index":7,"n_rows":50,"n_cols":15,"rows_kept":50,"cut":false,"hidden":false,"merged":[[5,4,5,14],[4,1,4,3],[4,4,4,14],[1,1,1,14],[2,1,2,14]]}
[]
[null,"PUNTAJE  ACUMULADO"]
[null,"CATEGORÍA ABIERTA ELITE"]
[]
[null,"ELITE ABIERTA",null,null,"PUNTAJES"]
[null,null,null,null,2014]
[null,null,"CODIGO","JINETE","I CHONE","II CHONE","III CHONE","IV CHONE","V CHONE","VI CHONE","VII CHONE","VIII CHONE","IX CHONE","X CHONE","ACUMULADO"]
[null,1,"A058","RIBADENEIRA ARTURO",null,160.80000000000001,240,159.6,163.1,null,null,null,136.68,241.6,{"$f":"SUM(E8:N8)","v":1101.78}]
[null,2,"A045","VINTIMILLA PABLO",null,null,null,240,null,156.75,null,165,144.72,229.51999999999998,935.99]
[null,3,"A092","MORABOWEN CESAR",152,null,170,null,154.94499999999999,null,145.476,null,152.76,null,775.18100000000004]
[null,4,"A190","PORTILLA FELIPE",null,101.304,170,null,null,null,161.63999999999999,null,120.6,165.48999999999998,719.03399999999999]
[null,5,"A055","LOZADA ARMANDO",112,null,161.5,151.20000000000002,null,148.5,null,85.5,null,null,658.7]
[null,6,"A035","WEEMAELS NATHALIE",null,null,228,168,163.1,null,null,null,80.400000000000006,null,639.5]
[null,7,"A060","VELEZ MENA MARIA CONSUELO",106.39999999999999,106.932,null,null,null,165,null,null,null,217.44,595.77199999999993]
[null,8,"A059","BURBANO VILLAVICENCIO JAIME",null,112.56,null,null,null,165,null,156.75,null,148.07,582.38]
[null,9,"A056","MORILLO MAURICIO",null,120.60000000000001,null,null,83.88,null,83.410000000000011,null,160.80000000000001,78.120000000000019,526.81000000000006]
[null,10,"A172","SERRANO ARMANDO JOSE",null,null,85.6,null,null,null,153.55799999999999,null,128.63999999999999,139.35999999999999,507.15800000000002]
[null,11,"A200","RECALDE JUAN JOSE",null,95.676000000000002,null,null,146.79,null,120.44000000000001,null,108.54,null,471.44600000000003]
[null,12,"A171","ALMEIDA AYALA HECTOR",null,null,null,228,null,148.5,null,null,76.38,null,452.88]
[null,13,"A033","ALLAICO JOSE EMILIO",106.39999999999999,null,null,159.6,null,null,null,null,null,156.78,422.78]
[null,14,"A130","MANCHENO GALO PATRICIO",null,null,161.5,null,null,null,153.55799999999999,null,102.51,null,417.56799999999998]
[null,15,"A046","MALO JAIME",160,null,null,96,null,85.5,null,null,null,null,341.5]
[null,16,"A067","NOBOA MAURICIO",54.739999999999988,null,null,null,121.16,null,null,null,152.76,null,328.65999999999997]
[null,17,"A081","CANDO MARIO",null,null,null,null,146.79,null,null,null,160.80000000000001,null,307.59000000000003]
[null,18,"A200","KOPPEL OSWALDO",64.399999999999991,152.76,null,86.4,null,null,null,null,null,null,303.55999999999995]
[null,19,"A130","MALO DIANA",null,null,null,168,null,120,null,null,null,null,288]
[null,20,"A026","GUARDERAS SEBASTIAN",null,null,null,null,null,null,null,null,null,174.2,174.2]
[null,21,"A023","MALO JAIME",null,null,null,null,null,null,null,120,null,null,120]
[null,22,"A051","LETORT MENA JOSE",null,null,null,null,null,null,87.800000000000011,null,null,null,87.800000000000011]
[null,23,"A187","SERRANO JUAN CARLOS",null,null,null,null,null,null,79.02000000000001,null,null,null,79.02000000000001]
[]
[null,null,null,null,null,null,null,null,null,null,null,{"$f":"IF(J32>=60,\"CLASIFICADO A 60 Km LIBRE y 80 Km NOVICIO\",IF(J32>=40,\"CLASIFICADO A 40 Km LIBRE y 60 Km NOVICIO\",\"\"))","v":""}]
[]
[]
[]
[]
[]
[]
[]
[]
[]
[]
[]
[]
[]
[]
[]
[]
[]
[null,null,null,null,null,null,null,null,null,null,null,{"$f":"IF(J50>=60,\"CLASIFICADO A 60 Km LIBRE y 80 Km NOVICIO\",IF(J50>=40,\"CLASIFICADO A 40 Km LIBRE y 60 Km NOVICIO\",\"\"))","v":""}]

{"sheet":"ELITE JUVENIL","index":8,"n_rows":39,"n_cols":15,"rows_kept":39,"cut":false,"hidden":false,"merged":[[5,4,5,14],[4,1,4,3],[4,4,4,14],[1,1,1,14],[2,1,2,14]]}
[]
[null,"PUNTAJE  ACUMULADO"]
[null,"CATEGORÍA JUVENIL ELITE"]
[]
[null,"ELITE JUVENIL",null,null,"PUNTAJES"]
[null,null,null,null,2014]
[null,null,"CODIGO","JINETE","I CHONE","II CHONE","III CHONE","IV CHONE","V CHONE","VI CHONE","VII CHONE","VIII CHONE","IX CHONE","X CHONE","ACUMULADO"]
[null,1,"J034","ANDRADE JOSE DANIEL",160,160.80000000000001,240,null,null,165,161.63999999999999,90,160.80000000000001,null,{"$f":"SUM(E8:N8)","v":1138.24}]
[null,2,"J063","GONZALEZ BERNARDA",106.39999999999999,null,228,null,219.43799999999999,165,null,null,null,null,718.83799999999997]
[null,3,"J047","LETORT DUEÑAS JOSE IGNACIO",null,null,161.5,null,163.1,null,null,null,160.80000000000001,174.2,659.6]
[null,4,"J059","DUBACH CAROLINA",null,112.56,161.5,96,null,null,145.476,null,120.6,null,636.13600000000008]
[null,5,"A097","LETORT DUEÑAS BERNARDA",null,144.72000000000003,null,null,null,null,87.800000000000011,null,144.72,165.48999999999998,542.73]
[null,6,"J008","GOMEZ ALEXANDER",null,null,null,228,231.62899999999999,null,null,null,null,null,459.62900000000002]
[null,7,"J021","CORNEJO BURNEO MANUEL",null,120.60000000000001,null,null,null,null,83.410000000000011,null,152.76,86.800000000000011,443.57]
[null,8,"J013","MORILLO SERGIO",null,null,170,null,243.82,null,null,null,null,null,413.82]
[null,9,"J087","MALO TORAL DAVID",null,152.76,null,240,null,null,null,null,null,null,392.76]
[null,10,"J079","JARAMILLO MANUELA",null,136.68,null,null,79.685999999999993,null,79.02000000000001,null,null,82.460000000000008,377.846]
[null,11,"J055","LOYOLA CLAUDIA MARIA",152,null,null,168,null,null,null,null,null,null,320]
[null,12,"J043","MORENO DANIEL",null,null,null,null,null,null,153.55799999999999,null,136.68,null,290.238]
[null,13,"J031","RIBADENEIRA SOFIA",null,null,null,null,null,null,null,null,null,241.6,241.6]
[null,14,"J057","GUARDERAS JOSE GABRIEL",null,null,null,null,154.94499999999999,null,null,null,null,null,154.94499999999999]
[null,15,"J020","SERRANO FELIPE",null,null,null,null,null,null,137.39399999999998,null,null,null,137.39399999999998]
[null,16,null,null,null,null,null,null,null,null,null,null,null,null,{"$f":"SUM(E23:N23)","v":0}]
[null,17,null,null,null,null,null,null,null,null,null,null,null,null,0]
[null,18,null,null,null,null,null,null,null,null,null,null,null,null,0]
[null,19,null,null,null,null,null,null,null,null,null,null,null,null,0]
[]
[null,null,null,null,null,null,null,null,null,null,null,{"$f":"IF(J28>=60,\"CLASIFICADO A 60 Km LIBRE y 80 Km NOVICIO\",IF(J28>=40,\"CLASIFICADO A 40 Km LIBRE y 60 Km NOVICIO\",\"\"))","v":""}]
[]
[]
[]
[]
[]
[]
[]
[]
[]
[]
[null,null,null,null,null,null,null,null,null,null,null,{"$f":"IF(J39>=60,\"CLASIFICADO A 60 Km LIBRE y 80 Km NOVICIO\",IF(J39>=40,\"CLASIFICADO A 40 Km LIBRE y 60 Km NOVICIO\",\"\"))","v":""}]

{"sheet":"ELITE MENORES","index":9,"n_rows":39,"n_cols":15,"rows_kept":39,"cut":false,"hidden":false,"merged":[[1,1,1,14],[2,1,2,14],[4,1,4,3],[4,4,4,14],[5,4,5,14]]}
[]
[null,"PUNTAJE  ACUMULADO"]
[null,"CATEGORÍA MENORES ELITE"]
[]
[null,"ELITE MENORES",null,null,"PUNTAJES"]
[null,null,null,null,2014]
[null,null,"CODIGO","JINETE","I CHONE","II CHONE","III CHONE","IV CHONE","V CHONE","VI CHONE","VII CHONE","VIII CHONE","IX CHONE","X CHONE","ACUMULADO"]
[null,1,"M013","JARAMILLO BENITO",null,112.56,null,null,163.1,null,87.800000000000011,null,160.80000000000001,null,{"$f":"SUM(E8:N8)","v":524.26}]
[null,2,null,null,null,null,null,null,null,null,null,null,null,null,0]
[null,3,null,null,null,null,null,null,null,null,null,null,null,null,0]
[null,4,null,null,null,null,null,null,null,null,null,null,null,null,0]
[null,5,null,null,null,null,null,null,null,null,null,null,null,null,0]
[null,6,null,null,null,null,null,null,null,null,null,null,null,null,0]
[null,7,null,null,null,null,null,null,null,null,null,null,null,null,0]
[null,8,null,null,null,null,null,null,null,null,null,null,null,null,0]
[null,9,null,null,null,null,null,null,null,null,null,null,null,null,0]
[null,10,null,null,null,null,null,null,null,null,null,null,null,null,0]
[null,11,null,null,null,null,null,null,null,null,null,null,null,null,0]
[null,12,null,null,null,null,null,null,null,null,null,null,null,null,0]
[null,13,null,null,null,null,null,null,null,null,null,null,null,null,0]
[null,14,null,null,null,null,null,null,null,null,null,null,null,null,0]
[null,15,null,null,null,null,null,null,null,null,null,null,null,null,{"$f":"SUM(E22:N22)","v":0}]
[null,16,null,null,null,null,null,null,null,null,null,null,null,null,0]
[null,17,null,null,null,null,null,null,null,null,null,null,null,null,0]
[null,18,null,null,null,null,null,null,null,null,null,null,null,null,0]
[null,19,null,null,null,null,null,null,null,null,null,null,null,null,0]
[]
[null,null,null,null,null,null,null,null,null,null,null,{"$f":"IF(J28>=60,\"CLASIFICADO A 60 Km LIBRE y 80 Km NOVICIO\",IF(J28>=40,\"CLASIFICADO A 40 Km LIBRE y 60 Km NOVICIO\",\"\"))","v":""}]
[]
[]
[]
[]
[]
[]
[]
[]
[]
[]
[null,null,null,null,null,null,null,null,null,null,null,{"$f":"IF(J39>=60,\"CLASIFICADO A 60 Km LIBRE y 80 Km NOVICIO\",IF(J39>=40,\"CLASIFICADO A 40 Km LIBRE y 60 Km NOVICIO\",\"\"))","v":""}]

{"sheet":"ELITE CABALLOS","index":10,"n_rows":80,"n_cols":16,"rows_kept":80,"cut":false,"hidden":false,"merged":[[5,5,5,15],[4,5,4,15],[1,1,1,15],[2,1,2,15],[4,1,4,4]]}
[]
[null,"PUNTAJE  ACUMULADO"]
[null,"CATEGORÍA CABALLOS ELITE"]
[]
[null,"ELITE CABALLOS",null,null,null,"PUNTAJES"]
[null,null,null,null,null,2014]
[null,null,"CODIGO","CABALLO","DUEÑO/JINETE","I CHONE","II CHONE","III CHONE","IV CHONE","V CHONE","VI CHONE","VII CHONE","VIII CHONE","IX CHONE","X CHONE","ACUMULADO"]
[null,1,"C188","FRODO","ARTURO RIBADENEIRA",null,null,240,null,null,null,null,null,120.6,241.6,{"$f":"SUM(F8:O8)","v":602.20000000000005}]
[null,2,"C202","PV RIGUEL","PABLO VINTIMILLA",null,null,161.5,240,null,156.75,null,null,null,null,{"$f":"SUM(F9:O9)","v":558.25}]
[null,3,"C174","ZT SATFANTDU","ARTURO RIBADENEIRA",null,112.56,null,159.6,83.88,null,145.476,null,80.400000000000006,241.6,{"$f":"+O10+I10+L10","v":546.67599999999993}]
[null,4,"C252","BIANCA","PABLO VINTIMILLA",null,null,null,151.20000000000002,null,148.5,null,165,null,229.51999999999998,{"$f":"SUM(F11:O11)-K11","v":545.72}]
[null,5,"C154","SHAKIRA","LETORT DUEÑAS JOSE IGNACIO",null,null,161.5,null,163.1,null,null,null,160.80000000000001,174.2,{"$f":"SUM(F12:O12)-N12","v":498.8}]
[null,6,"C204","AR ALBATSYN","PORTILLA FELIPE",null,101.304,170,null,null,null,161.63999999999999,null,120.6,165.48999999999998,{"$f":"SUM(H13:O13)-N13","v":497.13}]
[null,7,"C175","CLAW","ARTURO RIBADENEIRA",null,160.80000000000001,null,240,null,null,87.800000000000011,null,80.400000000000006,null,{"$f":"SUM(G14:M14)","v":488.6}]
[null,8,"C134","JUPITER","ANDRADE JOSE DANIEL",null,160.80000000000001,null,null,83.88,165,161.63999999999999,null,null,null,{"$f":"+G15+K15+L15","v":487.44}]
[null,9,"C329","SERENATA CMB","MORABOWEN CESAR",152,null,170,null,154.94499999999999,null,145.476,null,152.76,null,{"$f":"+H16+J16+N16","v":477.70499999999998}]
[null,10,"C382","PSICOTICO","MANCHENO GALO PATRICIO",null,null,161.5,null,154.94499999999999,null,153.55799999999999,null,102.51,null,{"$f":"SUM(F17:L17)","v":470.00299999999999}]
[null,11,"C097","CENTAURO","ALMEIDA AYALA HECTOR",null,null,null,null,null,165,null,156.75,null,148.07,{"$f":"SUM(F18:O18)","v":469.82}]
[null,12,"C148","FUERTE","GOMEZ ALEXANDER",null,null,null,228,231.62899999999999,null,null,null,null,null,{"$f":"SUM(F19:O19)","v":459.62900000000002}]
[null,13,"C046","AMARETO","LETORT DUEÑAS BERNARDA",null,144.72000000000003,null,null,null,null,87.800000000000011,null,144.72,165.48999999999998,{"$f":"SUM(F20:O20)-L20","v":454.93}]
[null,14,"C365","AS CHAGRA","SERRANO ARMANDO JOSE",null,null,null,null,146.79,null,null,null,160.80000000000001,139.35999999999999,{"$f":"SUM(F21:O21)","v":446.95000000000005}]
[null,15,"C261","GRINGO","MASAPANTA KEVIN",null,null,null,null,163.1,null,145.476,null,136.68,null,445.25600000000003]
[null,16,"C333","KADIN","ALLAICO JOSE EMILIO",106.39999999999999,null,null,159.6,null,null,null,null,null,156.78,422.78]
[null,17,"C200","MULATA","RECALDE JUAN JOSE",null,95.676000000000002,null,null,146.79,null,null,null,null,174.2,416.666]
[null,18,"C072","QUITA PENAS","MORILLO SERGIO",null,null,170,null,243.82,null,null,null,null,null,413.82]
[null,19,"C234","EL PADRINO","MALO TORAL DAVID",160,152.76,null,96,null,null,null,null,null,null,408.76]
[null,20,"C398","OM EL FIRST CHANCE","ANDRADE JOSE DANIEL",160,null,240,null,null,null,null,null,null,null,400]
[null,21,"C119","LLUVIA CMB","MORABOWEN CESAR",61.179999999999986,null,null,168,163.1,null,null,null,null,null,392.28]
[null,22,"C096","AR FAISAN","ARTURO RIBADENEIRA",null,null,161.5,null,219.43799999999999,null,null,null,null,null,380.93799999999999]
[null,23,"C019","NICOLAS","JARAMILLO MANUELA",null,136.68,null,null,null,null,79.02000000000001,null,160.80000000000001,null,376.5]
[null,24,"C147","CAMARON",null,null,101.304,null,null,154.94499999999999,null,null,null,76.38,null,332.62900000000002]
[null,25,"C197","PATACON","LOYOLA CLAUDIA MARIA",152,null,null,168,null,null,null,null,null,null,320]
[null,26,"C074","WISKY","VINTIMILLA PABLO",null,null,null,null,null,null,null,165,144.72,null,309.72000000000003]
[null,27,"C114","KAFIR HA","ALMEIDA AYALA HECTOR",null,null,null,null,null,null,null,null,76.38,217.44,293.82]
[null,28,"C143","ALI","DARQUEA RICARDO",null,null,null,null,154.94499999999999,null,137.39399999999998,null,null,null,292.33899999999994]
[null,29,"C294","REMOLACHA","MALO DIANA",null,null,null,168,null,120,null,null,null,null,288]
[null,30,"C341","TENGRI","VELEZ MENA MARIA CONSUELO",null,152.76,null,96,null,null,null,null,null,null,248.76]
[null,31,"C106","ZEUS LL","MORILLO MAURICIO",null,null,null,null,null,null,83.410000000000011,null,160.80000000000001,null,244.21000000000004]
[null,32,"C135","CARAGUAY",null,null,null,null,null,null,null,83.410000000000011,null,152.76,null,236.17000000000002]
[null,33,"C425","AR BOMBON","RECALDE JUAN JOSE",null,null,null,null,null,null,120.44000000000001,null,108.54,null,228.98000000000002]
[null,34,"C232","ASRAEL","GONZALEZ BERNARDA",null,null,228,null,null,null,null,null,null,null,228]
[null,35,"C115","AVENTURERO","ALMEIDA AYALA HECTOR",null,null,null,228,null,null,null,null,null,null,228]
[null,36,"C093","CG ALLASKI","WEEMAELS NATHALIE",null,null,228,null,null,null,null,null,null,null,228]
[null,37,"C189","HAAKIR","CORNEJO BURNEO MANUEL",null,120.60000000000001,null,null,null,null,null,null,null,null,120.60000000000001]
[null,38,"C094","MISTERIO","MORILLO MAURICIO",null,120.60000000000001,null,null,null,null,null,null,null,null,120.60000000000001]
[null,39,"C089","GR COMPADRE",null,null,null,null,null,83.88,null,null,null,null,null,83.88]
[null,40,"C360","RO EVITA",null,null,null,null,null,null,null,null,null,80.400000000000006,null,80.400000000000006]
[null,41,null,null,null,null,null,null,null,null,null,null,null,null,null,{"$f":"SUM(F48:O48)","v":0}]
[null,42,null,null,null,null,null,null,null,null,null,null,null,null,null,0]
[null,43,null,null,null,null,null,null,null,null,null,null,null,null,null,0]
[null,44,null,null,null,null,null,null,null,null,null,null,null,null,null,0]
[null,45,null,null,null,null,null,null,null,null,null,null,null,null,null,0]
[null,46,null,null,null,null,null,null,null,null,null,null,null,null,null,0]
[null,47,null,null,null,null,null,null,null,null,null,null,null,null,null,0]
[null,48,null,null,null,null,null,null,null,null,null,null,null,null,null,0]
[null,49,null,null,null,null,null,null,null,null,null,null,null,null,null,0]
[null,50,null,null,null,null,null,null,null,null,null,null,null,null,null,0]
[null,51,null,null,null,null,null,null,null,null,null,null,null,null,null,0]
[null,52,null,null,null,null,null,null,null,null,null,null,null,null,null,0]
[null,53,null,null,null,null,null,null,null,null,null,null,null,null,null,0]
[]
[]
[]
[]
[]
[]
[]
[]
[]
[]
[]
[]
[]
[]
[]
[]
[]
[]
[]
[null,null,null,null,null,null,null,null,null,null,null,null,{"$f":"IF(K80>=60,\"CLASIFICADO A 60 Km LIBRE y 80 Km NOVICIO\",IF(K80>=40,\"CLASIFICADO A 40 Km LIBRE y 60 Km NOVICIO\",\"\"))","v":""}]

{"sheet":"AMATEUR ABIERTA","index":11,"n_rows":94,"n_cols":15,"rows_kept":94,"cut":false,"hidden":false,"merged":[[5,4,5,14],[4,1,4,3],[4,4,4,14],[1,1,1,14],[2,1,2,14]]}
[]
[null,"PUNTAJE  ACUMULADO"]
[null,"CATEGORÍA ABIERTA NOVICIOS"]
[]
[null,"NOVICIOS ABIERTA",null,null,"PUNTAJES"]
[null,null,null,null,2014]
[null,null,"CODIGO","JINETE","I CHONE","II CHONE","III CHONE","IV CHONE","V CHONE","VI CHONE","VII CHONE","VIII CHONE","IX CHONE","X CHONE","ACUMULADO"]
[null,1,"A137","ESPINOZA JUAN SEBASTIAN",96.6,null,null,null,null,156.75,null,165,null,174.2,{"$f":"SUM(E8:N8)","v":592.54999999999995}]
[null,2,"A125","FALCONI FRANCISCO",null,null,77.039999999999992,null,75.492000000000004,null,null,null,114.57,122.4,389.50199999999995]
[null,3,"A021","ALVEAR JUAN CARLOS",null,null,null,null,null,null,145.476,null,76.38,86.800000000000011,308.65600000000001]
[null,4,"A123","SAMPER ALVARO",null,null,null,null,null,null,161.63999999999999,null,144.72,null,306.36]
[null,5,"A187","MOYA MIGUEL ANGEL",null,null,null,null,79.685999999999993,null,null,null,80.400000000000006,116.28,276.36599999999999]
[null,6,"A142","GONZALEZ SEBASTIAN",null,null,null,null,null,90,null,90,null,null,180]
[null,7,"A177","RAMIREZ FABRICIO",null,null,72.759999999999991,null,71.297999999999988,null,null,null,null,null,144.05799999999999]
[null,8,"A089","ORTIZ FERNANDO",null,null,null,null,115.10199999999999,null,null,null,null,null,115.10199999999999]
[null,9,"A143","LUGMAÑA JUAN CARLOS",null,null,null,91.199999999999989,null,null,null,null,null,null,91.199999999999989]
[null,10,"A204","PLUAS JUNIOR",null,null,null,null,null,null,null,90,null,null,90]
[null,11,"J101","PALACIOS GUIDO",null,null,null,null,null,null,null,85.5,null,null,85.5]
[null,12,"A186","DIAZ KOLICH DANITZA",null,null,null,null,null,null,null,null,null,82.460000000000008,82.460000000000008]
[null,13,"A185","BURBANO SERRANO JAIME ROLANDO",null,null,null,81.599999999999994,null,null,null,null,null,null,81.599999999999994]
[null,14,"A201","ULLOA GORDON FERNANDO",null,null,81.319999999999993,null,null,null,null,null,null,null,81.319999999999993]
[null,15,"A207","CASTRO TRAJANO",null,null,null,null,null,null,null,81,null,null,81]
[null,16,"A201","ULLOA GORDON FERNANDO",61.179999999999986,null,null,null,null,null,null,null,null,null,61.179999999999986]
[null,17,"A079","CUSME EDISON",57.959999999999994,null,null,null,null,null,null,null,null,null,57.959999999999994]
[null,18,null,null,null,null,null,null,null,null,null,null,null,null,{"$f":"SUM(E25:N25)","v":0}]
[null,19,null,null,null,null,null,null,null,null,null,null,null,null,0]
[null,20,null,null,null,null,null,null,null,null,null,null,null,null,{"$f":"SUM(E27:N27)","v":0}]
[null,21,null,null,null,null,null,null,null,null,null,null,null,null,0]
[null,22,null,null,null,null,null,null,null,null,null,null,null,null,0]
[null,23,null,null,null,null,null,null,null,null,null,null,null,null,0]
[null,24,null,null,null,null,null,null,null,null,null,null,null,null,0]
[null,25,null,null,null,null,null,null,null,null,null,null,null,null,0]
[null,26,null,null,null,null,null,null,null,null,null,null,null,null,0]
[null,27,null,null,null,null,null,null,null,null,null,null,null,null,0]
[null,28,null,null,null,null,null,null,null,null,null,null,null,null,0]
[null,29,null,null,null,null,null,null,null,null,null,null,null,null,0]
[null,30,null,null,null,null,null,null,null,null,null,null,null,null,0]
[null,31,null,null,null,null,null,null,null,null,null,null,null,null,0]
[null,32,null,null,null,null,null,null,null,null,null,null,null,null,0]
[null,33,null,null,null,null,null,null,null,null,null,null,null,null,0]
[null,34,null,null,null,null,null,null,null,null,null,null,null,null,0]
[null,35,null,null,null,null,null,null,null,null,null,null,null,null,0]
[null,36,null,null,null,null,null,null,null,null,null,null,null,null,0]
[null,37,null,null,null,null,null,null,null,null,null,null,null,null,0]
[null,38,null,null,null,null,null,null,null,null,null,null,null,null,0]
[null,39,null,null,null,null,null,null,null,null,null,null,null,null,0]
[null,40,null,null,null,null,null,null,null,null,null,null,null,null,0]
[null,41,null,null,null,null,null,null,null,null,null,null,null,null,0]
[null,42,null,null,null,null,null,null,null,null,null,null,null,null,0]
[null,43,null,null,null,null,null,null,null,null,null,null,null,null,{"$f":"SUM(E50:N50)","v":0}]
[null,44,null,null,null,null,null,null,null,null,null,null,null,null,{"$f":"SUM(E51:N51)","v":0}]
[null,45,null,null,null,null,null,null,null,null,null,null,null,null,0]
[null,46,null,null,null,null,null,null,null,null,null,null,null,null,0]
[null,47,null,null,null,null,null,null,null,null,null,null,null,null,0]
[null,48,null,null,null,null,null,null,null,null,null,null,null,null,0]
[null,49,null,null,null,null,null,null,null,null,null,null,null,null,0]
[null,50,null,null,null,null,null,null,null,null,null,null,null,null,0]
[null,51,null,null,null,null,null,null,null,null,null,null,null,null,0]
[null,52,null,null,null,null,null,null,null,null,null,null,null,null,0]
[null,53,null,null,null,null,null,null,null,null,null,null,null,null,0]
[null,54,null,null,null,null,null,null,null,null,null,null,null,null,0]
[null,55,null,null,null,null,null,null,null,null,null,null,null,null,0]
[null,56,null,null,null,null,null,null,null,null,null,null,null,null,0]
[null,57,null,null,null,null,null,null,null,null,null,null,null,null,0]
[null,58,null,null,null,null,null,null,null,null,null,null,null,null,0]
[null,59,null,null,null,null,null,null,null,null,null,null,null,null,0]
[null,60,null,null,null,null,null,null,null,null,null,null,null,null,0]
[null,61,null,null,null,null,null,null,null,null,null,null,null,null,0]
[null,62,null,null,null,null,null,null,null,null,null,null,null,null,0]
[null,63,null,null,null,null,null,null,null,null,null,null,null,null,0]
[null,64,null,null,null,null,null,null,null,null,null,null,null,null,0]
[null,65,null,null,null,null,null,null,null,null,null,null,null,null,0]
[null,66,null,null,null,null,null,null,null,null,null,null,null,null,0]
[null,67,null,null,null,null,null,null,null,null,null,null,null,null,0]
[]
[]
[]
[]
[]
[]
[]
[]
[]
[]
[]
[]
[]
[]
[]
[]
[]
[]
[]
[null,null,null,null,null,null,null,null,null,null,null,{"$f":"IF(J94>=60,\"CLASIFICADO A 60 Km LIBRE y 80 Km NOVICIO\",IF(J94>=40,\"CLASIFICADO A 40 Km LIBRE y 60 Km NOVICIO\",\"\"))","v":""}]

{"sheet":"AMATEUR JUVENIL","index":12,"n_rows":83,"n_cols":15,"rows_kept":83,"cut":false,"hidden":false,"merged":[[5,4,5,14],[4,1,4,3],[4,4,4,14],[1,1,1,14],[2,1,2,14]]}
[]
[null,"PUNTAJE  ACUMULADO"]
[null,"CATEGORÍA JUVENIL NOVICIOS"]
[]
[null,"NOVICIOS JUVENIL",null,null,"PUNTAJES"]
[null,null,null,null,2014]
[null,null,"CODIGO","JINETE","I CHONE","II CHONE","III CHONE","IV CHONE","V CHONE","VI CHONE","VII CHONE","VIII CHONE","IX CHONE","X CHONE","ACUMULADO"]
[null,1,"J100","MASAPANTA KEVIN",null,null,null,null,163.1,null,null,null,80.400000000000006,null,{"$f":"SUM(E8:N8)","v":243.5}]
[null,2,"J099","DARQUEA ANA MARIA",null,null,null,91.199999999999989,83.88,null,null,null,null,null,{"$f":"SUM(E9:N9)","v":175.07999999999998}]
[null,3,"J096","HURTADO HECTOR",51.519999999999996,null,null,null,null,null,null,120,null,null,{"$f":"SUM(E10:N10)","v":171.51999999999998}]
[null,4,"J091","BERREZUETA DELGADO PABLO SANTIAGO",112,null,170,null,null,null,null,null,null,null,{"$f":"SUM(G11:N11)","v":170}]
[null,5,"J108","DAVALOS JOAQUINA",null,null,null,null,null,null,87.800000000000011,null,80.400000000000006,null,{"$f":"SUM(E12:N12)","v":168.20000000000002}]
[null,6,"J096","LOYOLA TEODORO ANDRES",null,null,null,168,null,null,null,null,null,null,{"$f":"SUM(E13:N13)","v":168}]
[null,7,"J019","DARQUEA RICARDO",null,null,null,null,154.94499999999999,null,null,null,null,null,{"$f":"SUM(E14:N14)","v":154.94499999999999}]
[null,8,"J102","SALTIVERI MARIA JESUS",57.959999999999994,null,null,null,null,null,null,null,null,78.120000000000019,{"$f":"SUM(E15:N15)","v":136.08000000000001}]
[null,9,"J099","RODITTI CARVAJAL CRISTORO",null,106.932,null,null,null,null,null,null,null,null,{"$f":"SUM(E16:N16)","v":106.932}]
[null,10,"J057","GUARDERAS JOSE GABRIEL",null,101.304,null,null,null,null,null,null,76.38,null,{"$f":"SUM(E17:K17)","v":101.304}]
[null,11,"J098","MORENO PAULINA",null,null,null,96,null,null,null,null,null,null,{"$f":"SUM(E18:N18)","v":96}]
[null,12,"J097","MALO ANAHI",null,null,null,null,null,90,null,null,null,null,{"$f":"SUM(E19:N19)","v":90}]
[null,13,"J091","RODITTI CRISTOFORO",64.399999999999991,null,null,null,null,null,null,null,null,null,{"$f":"SUM(E20:N20)","v":64.399999999999991}]
[null,14,"J101","GRANIZO GARNADA FABIANA",61.179999999999986,null,null,null,null,null,null,null,null,null,{"$f":"SUM(E21:N21)","v":61.179999999999986}]
[null,15,"J088","SIMON NICOLAS",54.739999999999988,null,null,null,null,null,null,null,null,null,{"$f":"SUM(E22:N22)","v":54.739999999999988}]
[null,16,null,null,null,null,null,null,null,null,null,null,null,null,{"$f":"SUM(E23:N23)","v":0}]
[null,17,null,null,null,null,null,null,null,null,null,null,null,null,0]
[null,18,null,null,null,null,null,null,null,null,null,null,null,null,{"$f":"SUM(E25:N25)","v":0}]
[null,19,null,null,null,null,null,null,null,null,null,null,null,null,0]
[null,20,null,null,null,null,null,null,null,null,null,null,null,null,0]
[null,21,null,null,null,null,null,null,null,null,null,null,null,null,0]
[null,22,null,null,null,null,null,null,null,null,null,null,null,null,0]
[null,23,null,null,null,null,null,null,null,null,null,null,null,null,0]
[null,24,null,null,null,null,null,null,null,null,null,null,null,null,0]
[null,25,null,null,null,null,null,null,null,null,null,null,null,null,0]
[null,26,null,null,null,null,null,null,null,null,null,null,null,null,0]
[null,27,null,null,null,null,null,null,null,null,null,null,null,null,0]
[null,28,null,null,null,null,null,null,null,null,null,null,null,null,0]
[null,29,null,null,null,null,null,null,null,null,null,null,null,null,0]
[null,30,null,null,null,null,null,null,null,null,null,null,null,null,0]
[null,31,null,null,null,null,null,null,null,null,null,null,null,null,0]
[null,32,null,null,null,null,null,null,null,null,null,null,null,null,0]
[null,33,null,null,null,null,null,null,null,null,null,null,null,null,0]
[null,34,null,null,null,null,null,null,null,null,null,null,null,null,0]
[null,35,null,null,null,null,null,null,null,null,null,null,null,null,0]
[null,36,null,null,null,null,null,null,null,null,null,null,null,null,0]
[null,37,null,null,null,null,null,null,null,null,null,null,null,null,0]
[null,38,null,null,null,null,null,null,null,null,null,null,null,null,0]
[null,39,null,null,null,null,null,null,null,null,null,null,null,null,0]
[null,40,null,null,null,null,null,null,null,null,null,null,null,null,0]
[null,41,null,null,null,null,null,null,null,null,null,null,null,null,0]
[null,42,null,null,null,null,null,null,null,null,null,null,null,null,0]
[null,43,null,null,null,null,null,null,null,null,null,null,null,null,0]
[null,44,null,null,null,null,null,null,null,null,null,null,null,null,0]
[null,45,null,null,null,null,null,null,null,null,null,null,null,null,0]
[null,46,null,null,null,null,null,null,null,null,null,null,null,null,0]
[null,47,null,null,null,null,null,null,null,null,null,null,null,null,0]
[null,48,null,null,null,null,null,null,null,null,null,null,null,null,0]
[null,49,null,null,null,null,null,null,null,null,null,null,null,null,0]
[null,50,null,null,null,null,null,null,null,null,null,null,null,null,0]
[null,51,null,null,null,null,null,null,null,null,null,null,null,null,0]
[null,52,null,null,null,null,null,null,null,null,null,null,null,null,0]
[null,53,null,null,null,null,null,null,null,null,null,null,null,null,0]
[null,54,null,null,null,null,null,null,null,null,null,null,null,null,0]
[null,55,null,null,null,null,null,null,null,null,null,null,null,null,0]
[null,56,null,null,null,null,null,null,null,null,null,null,null,null,0]
[]
[null,null,null,null,null,null,null,null,null,null,null,{"$f":"IF(J65>=60,\"CLASIFICADO A 60 Km LIBRE y 80 Km NOVICIO\",IF(J65>=40,\"CLASIFICADO A 40 Km LIBRE y 60 Km NOVICIO\",\"\"))","v":""}]
[]
[]
[]
[]
[]
[]
[]
[]
[]
[]
[]
[]
[]
[]
[]
[]
[]
[null,null,null,null,null,null,null,null,null,null,null,{"$f":"IF(J83>=60,\"CLASIFICADO A 60 Km LIBRE y 80 Km NOVICIO\",IF(J83>=40,\"CLASIFICADO A 40 Km LIBRE y 60 Km NOVICIO\",\"\"))","v":""}]

{"sheet":"AMATEUR MENORES","index":13,"n_rows":50,"n_cols":15,"rows_kept":50,"cut":false,"hidden":false,"merged":[[5,4,5,14],[4,1,4,3],[4,4,4,14],[1,1,1,14],[2,1,2,14]]}
[]
[null,"PUNTAJE  ACUMULADO"]
[null,"CATEGORÍA MENORES NOVICIOS"]
[]
[null,"INFANTIL",null,null,"PUNTAJES"]
[null,null,null,null,2014]
[null,null,"CODIGO","JINETE","I CHONE","II CHONE","III CHONE","IV CHONE","V CHONE","VI CHONE","VII CHONE","VIII CHONE","IX CHONE","X CHONE","ACUMULADO"]
[null,1,"M042","TORRES UGALDE RAFAEL ESTEBAN",61.179999999999986,null,null,76.800000000000011,null,null,null,85.5,null,null,{"$f":"SUM(E8:N8)","v":223.48}]
[null,2,"M039","TORRES GIORDANO ALEJANDRO",null,null,null,91.199999999999989,null,null,null,90,null,null,181.2]
[null,3,"M022","MORABOWEN MOSQUERA CESAR",null,null,null,null,79.685999999999993,null,null,null,null,86.800000000000011,166.48599999999999]
[null,4,"M029","JIJON SOFIA",null,null,null,null,83.88,null,null,null,80.400000000000006,null,164.28]
[null,5,"M036","MALO TOMAS",64.399999999999991,null,null,96,null,null,null,null,null,null,160.39999999999998]
[null,6,"M036","MOSCOSO JUAN PABLO",null,null,null,72,null,null,null,81,null,null,153]
[null,7,"M037","MARIN CESAR JAVIER",null,null,null,null,null,null,null,90,null,null,90]
[null,8,"M042","VAZQUEZ MOSCOSO SEBASTIAN",null,null,null,86.4,null,null,null,null,null,null,86.4]
[null,9,"M037","LOPEZ JUAN RAFAEL",null,null,null,null,null,null,null,85.5,null,null,85.5]
[null,10,"M040","TORAL JUAN DIEGO",null,null,null,81.599999999999994,null,null,null,null,null,null,81.599999999999994]
[null,11,"M017","JARAMILLO SAMUEL",null,null,null,null,75.492000000000004,null,null,null,null,null,75.492000000000004]
[null,12,null,null,null,null,null,null,null,null,null,null,null,null,{"$f":"SUM(E19:N19)","v":0}]
[null,13,null,null,null,null,null,null,null,null,null,null,null,null,0]
[null,14,null,null,null,null,null,null,null,null,null,null,null,null,0]
[null,15,null,null,null,null,null,null,null,null,null,null,null,null,0]
[null,16,null,null,null,null,null,null,null,null,null,null,null,null,0]
[null,17,null,null,null,null,null,null,null,null,null,null,null,null,0]
[null,18,null,null,null,null,null,null,null,null,null,null,null,null,0]
[null,19,null,null,null,null,null,null,null,null,null,null,null,null,0]
[null,20,null,null,null,null,null,null,null,null,null,null,null,null,0]
[null,21,null,null,null,null,null,null,null,null,null,null,null,null,0]
[null,22,null,null,null,null,null,null,null,null,null,null,null,null,0]
[null,23,null,null,null,null,null,null,null,null,null,null,null,null,0]
[]
[null,null,null,null,null,null,null,null,null,null,null,{"$f":"IF(J32>=60,\"CLASIFICADO A 60 Km LIBRE y 80 Km NOVICIO\",IF(J32>=40,\"CLASIFICADO A 40 Km LIBRE y 60 Km NOVICIO\",\"\"))","v":""}]
[]
[]
[]
[]
[]
[]
[]
[]
[]
[]
[]
[]
[]
[]
[]
[]
[]
[null,null,null,null,null,null,null,null,null,null,null,{"$f":"IF(J50>=60,\"CLASIFICADO A 60 Km LIBRE y 80 Km NOVICIO\",IF(J50>=40,\"CLASIFICADO A 40 Km LIBRE y 60 Km NOVICIO\",\"\"))","v":""}]

{"sheet":"CABALLOS NOVICIOS","index":14,"n_rows":117,"n_cols":16,"rows_kept":117,"cut":false,"hidden":false,"merged":[[5,5,5,15],[4,1,4,4],[4,5,4,15],[1,1,1,15],[2,1,2,15]]}
[]
[null,"PUNTAJE  ACUMULADO"]
[null,"CATEGORÍA CABALLOS NOVICIOS"]
[]
[null,"ELITE CABALLOS",null,null,null,"PUNTAJES"]
[null,null,null,null,null,2014]
[null,null,"CODIGO","CABALLO","DUEÑO/JINETE","I CHONE","II CHONE","III CHONE","IV CHONE","V CHONE","VI CHONE","VII CHONE","VIII CHONE","IX CHONE","X CHONE","ACUMULADO"]
[null,1,"C397","KALA","ESPINOZA JUAN SEBASTIAN",96.6,null,null,null,null,156.75,null,165,null,174.2,{"$f":"SUM(F8:O8)","v":592.54999999999995}]
[null,2,"C206","AS GITANA","RAMIREZ FABRICIO",null,null,72.759999999999991,null,71.297999999999988,null,153.55799999999999,null,128.63999999999999,null,426.25599999999997]
[null,3,"C371","CARRUZO","SAMPER ALVARO",null,null,null,null,null,null,161.63999999999999,null,144.72,null,306.36]
[null,4,"C238","CALEÑA CMB","ULLOA GORDON FERNANDO",54.739999999999988,null,81.319999999999993,null,79.685999999999993,null,null,null,null,86.800000000000011,302.54599999999999]
[null,5,"C163","AR SEGOVIA","RIBADENEIRA ARTURO",null,null,null,null,163.1,null,null,null,136.68,null,299.77999999999997]
[null,6,"C130","ESPIRITU DEL ECUADOR","BERREZUETA DELGADO PABLO SANTIAGO",112,null,170,null,null,null,null,null,null,null,282]
[null,7,"C029","MILONGA","JARAMILLO BENITO",null,112.56,null,null,163.1,null,null,null,null,null,275.65999999999997]
[null,8,"C361","LIA","MAURICIO NOBOA",null,null,null,null,121.16,null,null,null,152.76,null,273.91999999999996]
[null,9,"C304","ZA SOFIA","VELEZ MENA MARIA CONSUELO",null,106.932,null,null,null,165,null,null,null,null,271.93200000000002]
[null,10,"C004","TEQUILA","GONZALEZ BERNARDA",106.39999999999999,null,null,null,null,165,null,null,null,null,271.39999999999998]
[null,11,"C333","KADIN","GONZALEZ BERNARDA",106.39999999999999,null,null,159.6,null,null,null,null,null,null,266]
[null,12,"C413","SOLOANDA","ANDRADE JOSE DANIEL",null,null,null,null,null,null,null,90,160.80000000000001,null,250.8]
[null,13,"C337","CAPORAL","RODITTI CARVAJAL CRISTORO",61.179999999999986,106.932,null,null,null,null,null,null,null,78.120000000000019,246.23200000000003]
[null,14,"C286","NEGRO EG","BURBANO SERRANO JAIME ROLANDO",null,null,null,81.599999999999994,null,148.5,null,null,null,null,230.1]
[null,15,"C403","NEVADA","TORRES UGALDE RAFAEL ESTEBAN",61.179999999999986,null,null,76.800000000000011,null,null,null,85.5,null,null,223.48]
[null,18,"C393","JASPER","MALO ANAHI",null,null,null,null,null,90,null,120,null,null,210]
[null,19,"C165","DIAMANTE","FALCONI FRANCISCO",null,null,77.039999999999992,null,null,null,null,null,114.57,null,191.60999999999999]
[null,20,"C392","MARISCAL","MALO JAIME",null,null,null,96,null,85.5,null,null,null,null,181.5]
[null,21,"C398","FRANCISCO","TORRES GIORDANO ALEJANDRO",null,null,null,91.199999999999989,null,null,null,90,null,null,181.2]
[null,22,"C406","ELECTRIFY VO","FELIPE ANDRADE",null,null,null,null,null,90,null,90,null,null,180]
[null,23,"C278","JUGUETE","LOYOLA TEODORO ANDRES",null,null,null,168,null,null,null,null,null,null,168]
[null,24,"C427","FLACA","SERRANO JUAN CARLOS",null,null,null,null,null,null,79.02000000000001,null,null,86.800000000000011,165.82000000000002]
[null,25,"C404","SALMA","JARAMILLO MANUELA",null,null,null,null,79.685999999999993,null,null,null,null,82.460000000000008,162.14600000000002]
[null,26,"C059","GS RASHID","MOYA MIGUEL ANGEL",null,null,null,null,79.685999999999993,null,null,null,80.400000000000006,null,160.08600000000001]
[null,27,"C395","JUVENTINO","MOSCOSO JUAN PABLO",null,null,null,72,null,null,null,81,null,null,153]
[null,28,"C282","MAGIC MENES","KOPPEL OSWALDO",64.399999999999991,null,null,86.4,null,null,null,null,null,null,150.80000000000001]
[null,29,"C240","KALIFA","RODITTI CRISTOFORO",64.399999999999991,null,null,null,null,null,null,null,null,82.460000000000008,146.86000000000001]
[null,31,"C283","MAGIC ONE","NOBOA MAURICIO",null,null,null,null,null,null,145.476,null,null,null,145.476]
[null,32,"C210","CHUQUIRAGUA","ORTIZ FERNANDO",null,null,null,null,115.10199999999999,null,null,null,null,null,115.10199999999999]
[null,33,"C140","CS SADIQ","HÉCTOR ALMEIDA AYALA",null,112.56,null,null,null,null,null,null,null,null,112.56]
[null,34,"C252","BIANCA","LOZADA JOSE ARMANDO",112,null,null,null,null,null,null,null,null,null,112]
[null,35,"C390","MIDAS",null,null,null,null,96,null,null,null,null,null,null,96]
[null,36,"C394","POLACO","MORENO PAULINA",null,null,null,96,null,null,null,null,null,null,{"$f":"SUM(F40:O40)","v":96}]
[null,37,"C384","GALAN","DARQUEA ANA MARIA",null,null,null,91.199999999999989,null,null,null,null,null,null,91.199999999999989]
[null,38,"C391","KALAHARI","LUGMAÑA JUAN CARLOS",null,null,null,91.199999999999989,null,null,null,null,null,null,91.199999999999989]
[null,39,"C408","GEMA DC","PLUAS JUNIOR",null,null,null,null,null,null,null,90,null,null,90]
[null,40,"C409","JOYA","MARIN CESAR JAVIER",null,null,null,null,null,null,null,90,null,null,90]
[null,41,"C237","CHULPI","JARAMILLO BENITO JOSE",null,null,null,null,null,null,87.800000000000011,null,null,null,87.800000000000011]
[null,42,"C079","SHAMIR SOLIN","LETORT MENA JOSE",null,null,null,null,null,null,87.800000000000011,null,null,null,87.800000000000011]
[null,43,"C387","AGUARDIENTICO","ALVEAR JUAN CARLOS",null,null,null,null,null,null,null,null,null,86.800000000000011,86.800000000000011]
[null,44,"C192","SUCO","VAZQUEZ MOSCOSO SEBASTIAN",null,null,null,86.4,null,null,null,null,null,null,86.4]
[null,45,"C357","MD YALA","SERRANO ARMANDO JOSE",null,null,85.6,null,null,null,null,null,null,null,85.6]
[null,46,"C418","COCHA","PALACIOS GUIDO",null,null,null,null,null,null,null,85.5,null,null,85.5]
[null,47,"C414","GH PSHYRO","LOZADA JOSE ARMANDO",null,null,null,null,null,null,null,85.5,null,null,85.5]
[null,48,"C397","RAYO","LOPEZ JUAN RAFAEL",null,null,null,null,null,null,null,85.5,null,null,85.5]
[null,49,"C199","PADRINO","TORAL JUAN DIEGO",null,null,null,81.599999999999994,null,null,null,null,null,null,81.599999999999994]
[null,50,"C412","BRISA","CASTRO TRAJANO",null,null,null,null,null,null,null,81,null,null,81]
[null,51,"C372","NABU","MAZAPANTA KEVIN",null,null,null,null,null,null,null,null,80.400000000000006,null,80.400000000000006]
[null,52,"C386","LUCKY","MORILLO MAURICIO",null,null,null,null,null,null,null,null,null,78.120000000000019,78.120000000000019]
[null,53,"C307","TABATHA","SORIA JUAN MANUEL",null,null,null,76.800000000000011,null,null,null,null,null,null,76.800000000000011]
[null,54,"C372","MERLIN","NOBOA MAURICIO",null,null,null,null,null,null,null,null,76.38,null,76.38]
[null,55,"C369","MIEL",null,null,null,null,null,75.492000000000004,null,null,null,null,null,75.492000000000004]
[null,56,"C396","TUMBA HOMBRES","MALO TOMAS",64.399999999999991,null,null,null,null,null,null,null,null,null,64.399999999999991]
[null,57,"C400","CM MAGNUM ROSE","CUSME EDISON",57.959999999999994,null,null,null,null,null,null,null,null,null,57.959999999999994]
[null,58,"C243","DUBAI","SALTIVERI MARIA JESUS",57.959999999999994,null,null,null,null,null,null,null,null,null,57.959999999999994]
[null,59,"C366","MAGO GH","NOBOA MAURICIO",54.739999999999988,null,null,null,null,null,null,null,null,null,54.739999999999988]
[null,60,"C393","ABUDAVI","HURTADO HECTOR",51.519999999999996,null,null,null,null,null,null,null,null,null,51.519999999999996]
[null,61,null,null,null,null,null,null,null,null,null,null,null,null,null,0]
[null,62,null,null,null,null,null,null,null,null,null,null,null,null,null,0]
[null,63,null,null,null,null,null,null,null,null,null,null,null,null,null,0]
[null,64,null,null,null,null,null,null,null,null,null,null,null,null,null,{"$f":"SUM(F68:O68)","v":0}]
[null,65,null,null,null,null,null,null,null,null,null,null,null,null,null,0]
[null,66,null,null,null,null,null,null,null,null,null,null,null,null,null,0]
[null,67,null,null,null,null,null,null,null,null,null,null,null,null,null,0]
[null,68,null,null,null,null,null,null,null,null,null,null,null,null,null,{"$f":"SUM(F72:O72)","v":0}]
[null,69,null,null,null,null,null,null,null,null,null,null,null,null,null,0]
[null,70,null,null,null,null,null,null,null,null,null,null,null,null,null,0]
[null,71,null,null,null,null,null,null,null,null,null,null,null,null,null,0]
[null,72,null,null,null,null,null,null,null,null,null,null,null,null,null,0]
[null,73,null,null,null,null,null,null,null,null,null,null,null,null,null,0]
[null,74,null,null,null,null,null,null,null,null,null,null,null,null,null,0]
[null,75,null,null,null,null,null,null,null,null,null,null,null,null,null,0]
[null,76,null,null,null,null,null,null,null,null,null,null,null,null,null,0]
[null,77,null,null,null,null,null,null,null,null,null,null,null,null,null,0]
[null,78,null,null,null,null,null,null,null,null,null,null,null,null,null,0]
[null,79,null,null,null,null,null,null,null,null,null,null,null,null,null,0]
[null,80,null,null,null,null,null,null,null,null,null,null,null,null,null,0]
[null,81,null,null,null,null,null,null,null,null,null,null,null,null,null,0]
[null,82,null,null,null,null,null,null,null,null,null,null,null,null,null,0]
[null,83,null,null,null,null,null,null,null,null,null,null,null,null,null,0]
[null,84,null,null,null,null,null,null,null,null,null,null,null,null,null,0]
[null,85,null,null,null,null,null,null,null,null,null,null,null,null,null,0]
[null,86,null,null,null,null,null,null,null,null,null,null,null,null,null,0]
[null,87,null,null,null,null,null,null,null,null,null,null,null,null,null,0]
[null,88,null,null,null,null,null,null,null,null,null,null,null,null,null,0]
[null,89,null,null,null,null,null,null,null,null,null,null,null,null,null,0]
[null,90,null,null,null,null,null,null,null,null,null,null,null,null,null,0]
[null,91,null,null,null,null,null,null,null,null,null,null,null,null,null,0]
[null,92,null,null,null,null,null,null,null,null,null,null,null,null,null,0]
[null,93,null,null,null,null,null,null,null,null,null,null,null,null,null,0]
[]
[]
[]
[]
[]
[]
[]
[]
[]
[]
[]
[]
[]
[]
[]
[]
[]
[]
[]
[null,null,null,null,null,null,null,null,null,null,null,null,{"$f":"IF(K117>=60,\"CLASIFICADO A 60 Km LIBRE y 80 Km NOVICIO\",IF(K117>=40,\"CLASIFICADO A 40 Km LIBRE y 60 Km NOVICIO\",\"\"))","v":""}]

{"sheet":"PR ABIERTA","index":15,"n_rows":55,"n_cols":15,"rows_kept":55,"cut":false,"hidden":false,"merged":[[1,1,1,14],[2,1,2,14],[4,1,4,3],[4,4,4,14],[5,4,5,14]]}
[]
[null,"PUNTAJE  ACUMULADO"]
[null,"CATEGORÍA PROMOCIONAL ABIERTA"]
[]
[null,"PROMOCIONAL ABIERTA",null,null,"PUNTAJES"]
[null,null,null,null,2014]
[null,null,"CODIGO","JINETE","I CHONE","II CHONE","III CHONE","IV CHONE","V CHONE","VI CHONE","VII CHONE","VIII CHONE","IX CHONE","X CHONE","ACUMULADO"]
[null,1,"A064","CASTILLO DIEGO",null,null,85.6,null,83.88,null,79.02000000000001,null,80.400000000000006,null,{"$f":"SUM(E8:N8)","v":328.9}]
[null,2,"A012","ALMEIDA PARDO HECTOR",null,null,null,null,null,null,83.410000000000011,null,null,78.120000000000019,161.53000000000003]
[null,3,"A214","LEPPERT MISHELL",null,null,null,null,null,null,74.63000000000001,null,68.34,null,142.97000000000003]
[null,4,"A030","MONCAYO DANILO",null,null,null,null,41.94,null,87.800000000000011,null,null,null,129.74]
[null,5,"A212","CANGAS GUILLERMO",null,null,null,null,null,null,30.900000000000002,null,null,86.800000000000011,117.70000000000002]
[null,6,"A213","ROSAS MARIO",null,null,null,null,null,null,32.96,null,null,82.460000000000008,115.42000000000002]
[null,7,"M035","MANCHENO PAMELA",null,null,null,null,null,null,37.080000000000005,null,76.38,null,113.46000000000001]
[null,8,"A165","MORALES ANDRES",null,null,81.319999999999993,null,null,null,null,null,null,null,81.319999999999993]
[null,9,"A068","HIDALGO MARIA JOSE",null,null,null,null,79.685999999999993,null,null,null,null,null,79.685999999999993]
[null,10,"A187","MOYA MIGUEL ANGEL",null,null,77.039999999999992,null,null,null,null,null,null,null,77.039999999999992]
[null,11,"A051","GUARDERAS SEBASTIAN",null,null,null,null,null,null,null,null,72.360000000000014,null,72.360000000000014]
[null,12,"A290","ESTEVEZ GEOVANNI",null,28.14,40.659999999999997,null,null,null,null,null,null,null,68.8]
[null,13,"A193","CORO CHICAIZA JORGE",null,26.733000000000001,null,null,null,null,39.14,null,null,null,65.873000000000005]
[null,14,"A182","TAYO SANDRO",null,null,null,null,null,null,null,null,null,51.2,51.2]
[null,15,"A183","HERRERA MARIA BELEN",null,null,null,null,null,null,null,null,null,48.64,48.64]
[null,16,"A193","SANTOS MICHAEL",null,null,42.8,null,null,null,null,null,null,null,42.8]
[null,17,"A196","MONCAYO CASTILLO FERNANDO",null,null,null,null,null,null,41.2,null,null,null,41.2]
[null,18,"A197","ANDINO DIEGO",null,null,null,null,null,null,null,null,40.200000000000003,null,40.200000000000003]
[null,19,"A096","MONCAYO JUAN MARCELO",null,null,null,null,39.842999999999996,null,null,null,null,null,39.842999999999996]
[null,20,"A194","CACHUMBA RODOLFO",null,null,38.519999999999996,null,null,null,null,null,null,null,38.519999999999996]
[null,21,"A082","GARZON JOSE RICARDO",null,null,null,null,37.746000000000002,null,null,null,null,null,37.746000000000002]
[null,22,"A039","CASTILLO MAURICIO",null,null,36.379999999999995,null,null,null,null,null,null,null,36.379999999999995]
[null,23,"A198","REINA RONALD",null,null,null,null,null,null,35.020000000000003,null,null,null,35.020000000000003]
[null,24,"A210","CORREA DAVID",null,null,null,null,null,null,28.84,null,null,null,28.84]
[null,25,"A195","MONCAYO FERNANDO",null,25.326000000000001,null,null,null,null,null,null,null,null,25.326000000000001]
[null,26,"A189","SANCHEZ CRISTIAN",null,23.919,null,null,null,null,null,null,null,null,23.919]
[null,27,"A194","GUERRERO EMILIO",null,22.512,null,null,null,null,null,null,null,null,22.512]
[null,28,"A188","VICUÑA ALEJANDRA",null,21.105,null,null,null,null,null,null,null,null,21.105]
[]
[null,null,null,null,null,null,null,null,null,null,null,{"$f":"IF(J37>=60,\"CLASIFICADO A 60 Km LIBRE y 80 Km NOVICIO\",IF(J37>=40,\"CLASIFICADO A 40 Km LIBRE y 60 Km NOVICIO\",\"\"))","v":""}]
[]
[]
[]
[]
[]
[]
[]
[]
[]
[]
[]
[]
[]
[]
[]
[]
[]
[null,null,null,null,null,null,null,null,null,null,null,{"$f":"IF(J55>=60,\"CLASIFICADO A 60 Km LIBRE y 80 Km NOVICIO\",IF(J55>=40,\"CLASIFICADO A 40 Km LIBRE y 60 Km NOVICIO\",\"\"))","v":""}]

{"sheet":"PR JUVENIL","index":16,"n_rows":50,"n_cols":15,"rows_kept":50,"cut":false,"hidden":false,"merged":[[1,1,1,14],[2,1,2,14],[4,1,4,3],[4,4,4,14],[5,4,5,14]]}
[]
[null,"PUNTAJE  ACUMULADO"]
[null,"CATEGORÍA PROMOCIONAL JUVENIL"]
[]
[null,"PROMOCIONAL JUVENIL",null,null,"PUNTAJES"]
[null,null,null,null,2014]
[null,null,"CODIGO","JINETE","I CHONE","II CHONE","III CHONE","IV CHONE","V CHONE","VI CHONE","VII CHONE","VIII CHONE","IX CHONE","X CHONE","ACUMULADO"]
[null,1,"J104","AYMARA  LEON SANDRO",null,null,42.8,null,83.88,null,null,null,null,48.64,{"$f":"SUM(E8:N8)","v":175.32}]
[null,2,"J111","BEATE VARGAS PEDRO",null,null,null,null,null,null,87.800000000000011,null,null,86.800000000000011,174.60000000000002]
[null,3,"J110","NAVARRETE RUIZ BRAYAN",null,null,null,null,41.94,null,80.400000000000006,null,null,null,122.34]
[null,4,"J087","VILLAMARIN ANDRES",null,null,null,null,null,null,null,null,38.19,51.2,89.39]
[null,5,"J045","JIJON IGNACIO",null,null,null,null,null,null,83.410000000000011,null,null,null,83.410000000000011]
[null,6,"M037","TORRES KATHRINA",null,null,null,null,null,null,41.2,null,40.200000000000003,null,81.400000000000006]
[null,7,"J022","JIJON JUAN ESTEBAN",null,null,null,null,null,null,79.02000000000001,null,null,null,79.02000000000001]
[null,8,"J100","MASAPANTA KEVIN",null,56.28,null,null,null,null,null,null,null,null,56.28]
[null,9,"J020","SERRANO VALLEJO FELIPE",null,53.466000000000001,null,null,null,null,null,null,null,null,53.466000000000001]
[null,10,"J095","WEBER FEDERICO",null,null,null,null,null,null,null,null,null,46.080000000000005,46.080000000000005]
[null,11,"J105","CORREA JOAQUIN",null,null,40.659999999999997,null,null,null,null,null,null,null,40.659999999999997]
[null,12,"J102","ARIAS JOSE TOMAS",null,28.14,null,null,null,null,null,null,null,null,28.14]
[null,13,null,null,null,null,null,null,null,null,null,null,null,null,{"$f":"SUM(E20:N20)","v":0}]
[null,14,null,null,null,null,null,null,null,null,null,null,null,null,0]
[null,15,null,null,null,null,null,null,null,null,null,null,null,null,0]
[null,16,null,null,null,null,null,null,null,null,null,null,null,null,0]
[null,17,null,null,null,null,null,null,null,null,null,null,null,null,0]
[null,18,null,null,null,null,null,null,null,null,null,null,null,null,0]
[null,19,null,null,null,null,null,null,null,null,null,null,null,null,0]
[null,20,null,null,null,null,null,null,null,null,null,null,null,null,0]
[null,21,null,null,null,null,null,null,null,null,null,null,null,null,0]
[null,22,null,null,null,null,null,null,null,null,null,null,null,null,0]
[null,23,null,null,null,null,null,null,null,null,null,null,null,null,0]
[]
[null,null,null,null,null,null,null,null,null,null,null,{"$f":"IF(J32>=60,\"CLASIFICADO A 60 Km LIBRE y 80 Km NOVICIO\",IF(J32>=40,\"CLASIFICADO A 40 Km LIBRE y 60 Km NOVICIO\",\"\"))","v":""}]
[]
[]
[]
[]
[]
[]
[]
[]
[]
[]
[]
[]
[]
[]
[]
[]
[]
[null,null,null,null,null,null,null,null,null,null,null,{"$f":"IF(J50>=60,\"CLASIFICADO A 60 Km LIBRE y 80 Km NOVICIO\",IF(J50>=40,\"CLASIFICADO A 40 Km LIBRE y 60 Km NOVICIO\",\"\"))","v":""}]

{"sheet":"PR MENORES","index":17,"n_rows":50,"n_cols":15,"rows_kept":50,"cut":false,"hidden":false,"merged":[[1,1,1,14],[2,1,2,14],[4,1,4,3],[4,4,4,14],[5,4,5,14]]}
[]
[null,"PUNTAJE  ACUMULADO"]
[null,"CATEGORÍA PROMOCIONAL MENORES"]
[]
[null,"PROMOCIONAL MENORES",null,null,"PUNTAJES"]
[null,null,null,null,2014]
[null,null,"CODIGO","JINETE","I CHONE","II CHONE","III CHONE","IV CHONE","V CHONE","VI CHONE","VII CHONE","VIII CHONE","IX CHONE","X CHONE","ACUMULADO"]
[null,1,"M034","BEATE VARGAS MANUELA",null,null,null,null,null,null,87.800000000000011,null,null,86.800000000000011,{"$f":"SUM(E8:N8)","v":174.60000000000002}]
[null,2,"M028","CORREA JUAN MARTIN",null,null,null,null,83.88,null,null,null,null,51.2,{"$f":"SUM(E9:N9)","v":135.07999999999998}]
[null,3,"M042","TAPIA RUBEN",null,null,null,48,null,null,null,null,null,null,{"$f":"SUM(E10:N10)","v":48}]
[null,4,null,null,null,null,null,null,null,null,null,null,null,null,{"$f":"SUM(E11:N11)","v":0}]
[null,5,null,null,null,null,null,null,null,null,null,null,null,null,0]
[null,6,null,null,null,null,null,null,null,null,null,null,null,null,0]
[null,7,null,null,null,null,null,null,null,null,null,null,null,null,0]
[null,8,null,null,null,null,null,null,null,null,null,null,null,null,0]
[null,9,null,null,null,null,null,null,null,null,null,null,null,null,0]
[null,10,null,null,null,null,null,null,null,null,null,null,null,null,0]
[null,11,null,null,null,null,null,null,null,null,null,null,null,null,0]
[null,12,null,null,null,null,null,null,null,null,null,null,null,null,0]
[null,13,null,null,null,null,null,null,null,null,null,null,null,null,0]
[null,14,null,null,null,null,null,null,null,null,null,null,null,null,0]
[null,15,null,null,null,null,null,null,null,null,null,null,null,null,0]
[null,16,null,null,null,null,null,null,null,null,null,null,null,null,0]
[null,17,null,null,null,null,null,null,null,null,null,null,null,null,0]
[null,18,null,null,null,null,null,null,null,null,null,null,null,null,0]
[null,19,null,null,null,null,null,null,null,null,null,null,null,null,0]
[null,20,null,null,null,null,null,null,null,null,null,null,null,null,0]
[null,21,null,null,null,null,null,null,null,null,null,null,null,null,0]
[null,22,null,null,null,null,null,null,null,null,null,null,null,null,0]
[null,23,null,null,null,null,null,null,null,null,null,null,null,null,0]
[]
[null,null,null,null,null,null,null,null,null,null,null,{"$f":"IF(J32>=60,\"CLASIFICADO A 60 Km LIBRE y 80 Km NOVICIO\",IF(J32>=40,\"CLASIFICADO A 40 Km LIBRE y 60 Km NOVICIO\",\"\"))","v":""}]
[]
[]
[]
[]
[]
[]
[]
[]
[]
[]
[]
[]
[]
[]
[]
[]
[]
[null,null,null,null,null,null,null,null,null,null,null,{"$f":"IF(J50>=60,\"CLASIFICADO A 60 Km LIBRE y 80 Km NOVICIO\",IF(J50>=40,\"CLASIFICADO A 40 Km LIBRE y 60 Km NOVICIO\",\"\"))","v":""}]

{"sheet":"PR INFANTIL","index":18,"n_rows":50,"n_cols":15,"rows_kept":50,"cut":false,"hidden":false,"merged":[[1,1,1,14],[2,1,2,14],[4,1,4,3],[4,4,4,14],[5,4,5,14]]}
[]
[null,"PUNTAJE  ACUMULADO"]
[null,"CATEGORÍA PROMOCIONAL INFANTIL"]
[]
[null,"PROMOCIONAL INFANTIL",null,null,"PUNTAJES"]
[null,null,null,null,2014]
[null,null,"CODIGO","JINETE","I CHONE","II CHONE","III CHONE","IV CHONE","V CHONE","VI CHONE","VII CHONE","VIII CHONE","IX CHONE","X CHONE","ACUMULADO"]
[null,1,"M017","JARAMILLO SAMUEL",null,28.14,null,null,83.88,null,41.2,null,40.200000000000003,null,{"$f":"SUM(E8:N8)","v":193.42000000000002}]
[null,2,"I043","DONOSO JULIAN",null,null,null,48,null,45,null,null,null,null,{"$f":"SUM(E9:N9)","v":93}]
[null,3,"I031","SALTIVERI ALEJANDRA",null,null,null,null,null,null,null,null,null,51.2,{"$f":"SUM(E10:N10)","v":51.2}]
[null,4,"I044","DAVALOS REBECA",null,null,null,null,null,42.75,null,null,null,null,{"$f":"SUM(E11:N11)","v":42.75}]
[null,5,null,null,null,null,null,null,null,null,null,null,null,null,{"$f":"SUM(E12:N12)","v":0}]
[null,6,null,null,null,null,null,null,null,null,null,null,null,null,0]
[null,7,null,null,null,null,null,null,null,null,null,null,null,null,0]
[null,8,null,null,null,null,null,null,null,null,null,null,null,null,0]
[null,9,null,null,null,null,null,null,null,null,null,null,null,null,0]
[null,10,null,null,null,null,null,null,null,null,null,null,null,null,0]
[null,11,null,null,null,null,null,null,null,null,null,null,null,null,0]
[null,12,null,null,null,null,null,null,null,null,null,null,null,null,0]
[null,13,null,null,null,null,null,null,null,null,null,null,null,null,0]
[null,14,null,null,null,null,null,null,null,null,null,null,null,null,0]
[null,15,null,null,null,null,null,null,null,null,null,null,null,null,0]
[null,16,null,null,null,null,null,null,null,null,null,null,null,null,0]
[null,17,null,null,null,null,null,null,null,null,null,null,null,null,0]
[null,18,null,null,null,null,null,null,null,null,null,null,null,null,0]
[null,19,null,null,null,null,null,null,null,null,null,null,null,null,0]
[null,20,null,null,null,null,null,null,null,null,null,null,null,null,0]
[null,21,null,null,null,null,null,null,null,null,null,null,null,null,0]
[null,22,null,null,null,null,null,null,null,null,null,null,null,null,0]
[null,23,null,null,null,null,null,null,null,null,null,null,null,null,0]
[]
[null,null,null,null,null,null,null,null,null,null,null,{"$f":"IF(J32>=60,\"CLASIFICADO A 60 Km LIBRE y 80 Km NOVICIO\",IF(J32>=40,\"CLASIFICADO A 40 Km LIBRE y 60 Km NOVICIO\",\"\"))","v":""}]
[]
[]
[]
[]
[]
[]
[]
[]
[]
[]
[]
[]
[]
[]
[]
[]
[]
[null,null,null,null,null,null,null,null,null,null,null,{"$f":"IF(J50>=60,\"CLASIFICADO A 60 Km LIBRE y 80 Km NOVICIO\",IF(J50>=40,\"CLASIFICADO A 40 Km LIBRE y 60 Km NOVICIO\",\"\"))","v":""}]

{"sheet":"PR ADULTO-MENOR","index":19,"n_rows":165,"n_cols":15,"rows_kept":165,"cut":false,"hidden":false,"merged":[[1,1,1,14],[2,1,2,14],[4,1,4,2],[4,4,4,14],[5,4,5,14]]}
[]
[null,"PUNTAJE  ACUMULADO"]
[null,"CATEGORÍA PROMOCIONAL ADULTO/MENOR"]
[]
[null,"BINOMIOS ABIERTA",null,null,"PUNTAJES"]
[null,null,null,null,2014]
[null,null,"MENOR","ADULTOS","I CHONE","II CHONE","III CHONE","IV CHONE","V CHONE","VI CHONE","VII CHONE","VIII CHONE","IX CHONE","X CHONE","ACUMULADO"]
[null,1,"RAMIREZ RAFAEL","MORENO GABRIEL, RAMIREZ FABRICIO",null,28.14,42.8,null,41.94,null,null,null,36.180000000000007,null,{"$f":"SUM(E8:N8)","v":149.06}]
[null,4,"DARQUEA APOLO EMILIO","MASAPANTA FABIAN, DARQUEA BERNARDO, DARQUEA RAFAELA",null,25.326000000000001,40.659999999999997,null,null,null,null,null,40.200000000000003,null,{"$f":"SUM(E9:N9)","v":106.18599999999999}]
[null,2,"BARAHONA MARIA EMILIA","BARAHONA ANDRES",null,null,null,null,null,null,41.2,null,null,48.64,{"$f":"SUM(E10:N10)","v":89.84}]
[null,3,"JARAMILLO SAMUEL","JARAMILLO BENITO",null,null,null,null,null,null,null,null,null,51.2,{"$f":"SUM(E11:N11)","v":51.2}]
[null,7,"MORABOWEN MOSQUERA CESAR","SANTOS MICHAEL",null,26.733000000000001,null,null,null,null,null,null,null,null,{"$f":"SUM(E12:N12)","v":26.733000000000001}]
[null,5,null,null,null,null,null,null,null,null,null,null,null,null,{"$f":"SUM(E13:N13)","v":0}]
[null,6,null,null,null,null,null,null,null,null,null,null,null,null,{"$f":"SUM(E14:N14)","v":0}]
[null,8,null,null,null,null,null,null,null,null,null,null,null,null,{"$f":"SUM(E15:N15)","v":0}]
[null,9,null,null,null,null,null,null,null,null,null,null,null,null,{"$f":"SUM(E16:N16)","v":0}]
[null,10,null,null,null,null,null,null,null,null,null,null,null,null,0]
[null,11,null,null,null,null,null,null,null,null,null,null,null,null,0]
[null,12,null,null,null,null,null,null,null,null,null,null,null,null,0]
[null,13,null,null,null,null,null,null,null,null,null,null,null,null,0]
[null,14,null,null,null,null,null,null,null,null,null,null,null,null,0]
[null,15,null,null,null,null,null,null,null,null,null,null,null,null,0]
[null,16,null,null,null,null,null,null,null,null,null,null,null,null,0]
[null,17,null,null,null,null,null,null,null,null,null,null,null,null,0]
[null,18,null,null,null,null,null,null,null,null,null,null,null,null,0]
[null,19,null,null,null,null,null,null,null,null,null,null,null,null,0]
[null,20,null,null,null,null,null,null,null,null,null,null,null,null,0]
[null,21,null,null,null,null,null,null,null,null,null,null,null,null,0]
[null,22,null,null,null,null,null,null,null,null,null,null,null,null,0]
[null,23,null,null,null,null,null,null,null,null,null,null,null,null,0]
[null,24,null,null,null,null,null,null,null,null,null,null,null,null,0]
[null,25,null,null,null,null,null,null,null,null,null,null,null,null,0]
[null,26,null,null,null,null,null,null,null,null,null,null,null,null,0]
[null,27,null,null,null,null,null,null,null,null,null,null,null,null,0]
[null,28,null,null,null,null,null,null,null,null,null,null,null,null,0]
[null,29,null,null,null,null,null,null,null,null,null,null,null,null,0]
[null,30,null,null,null,null,null,null,null,null,null,null,null,null,0]
[null,31,null,null,null,null,null,null,null,null,null,null,null,null,0]
[null,32,null,null,null,null,null,null,null,null,null,null,null,null,0]
[null,33,null,null,null,null,null,null,null,null,null,null,null,null,0]
[null,34,null,null,null,null,null,null,null,null,null,null,null,null,0]
[null,35,null,null,null,null,null,null,null,null,null,null,null,null,0]
[null,36,null,null,null,null,null,null,null,null,null,null,null,null,0]
[null,37,null,null,null,null,null,null,null,null,null,null,null,null,0]
[null,38,null,null,null,null,null,null,null,null,null,null,null,null,0]
[null,39,null,null,null,null,null,null,null,null,null,null,null,null,0]
[null,40,null,null,null,null,null,null,null,null,null,null,null,null,0]
[null,41,null,null,null,null,null,null,null,null,null,null,null,null,0]
[null,42,null,null,null,null,null,null,null,null,null,null,null,null,0]
[null,43,null,null,null,null,null,null,null,null,null,null,null,null,0]
[null,44,null,null,null,null,null,null,null,null,null,null,null,null,0]
[null,45,null,null,null,null,null,null,null,null,null,null,null,null,0]
[null,46,null,null,null,null,null,null,null,null,null,null,null,null,0]
[null,47,null,null,null,null,null,null,null,null,null,null,null,null,0]
[null,48,null,null,null,null,null,null,null,null,null,null,null,null,0]
[null,49,null,null,null,null,null,null,null,null,null,null,null,null,0]
[null,50,null,null,null,null,null,null,null,null,null,null,null,null,0]
[null,51,null,null,null,null,null,null,null,null,null,null,null,null,0]
[null,52,null,null,null,null,null,null,null,null,null,null,null,null,0]
[null,53,null,null,null,null,null,null,null,null,null,null,null,null,0]
[null,54,null,null,null,null,null,null,null,null,null,null,null,null,0]
[null,55,null,null,null,null,null,null,null,null,null,null,null,null,0]
[null,56,null,null,null,null,null,null,null,null,null,null,null,null,0]
[null,57,null,null,null,null,null,null,null,null,null,null,null,null,0]
[null,58,null,null,null,null,null,null,null,null,null,null,null,null,0]
[null,59,null,null,null,null,null,null,null,null,null,null,null,null,{"$f":"SUM(E66:N66)","v":0}]
[null,60,null,null,null,null,null,null,null,null,null,null,null,null,0]
[null,61,null,null,null,null,null,null,null,null,null,null,null,null,0]
[null,62,null,null,null,null,null,null,null,null,null,null,null,null,0]
[null,63,null,null,null,null,null,null,null,null,null,null,null,null,0]
[null,64,null,null,null,null,null,null,null,null,null,null,null,null,0]
[null,65,null,null,null,null,null,null,null,null,null,null,null,null,0]
[null,66,null,null,null,null,null,null,null,null,null,null,null,null,0]
[null,67,null,null,null,null,null,null,null,null,null,null,null,null,{"$f":"SUM(E74:N74)","v":0}]
[null,68,null,null,null,null,null,null,null,null,null,null,null,null,0]
[null,69,null,null,null,null,null,null,null,null,null,null,null,null,0]
[null,70,null,null,null,null,null,null,null,null,null,null,null,null,0]
[null,71,null,null,null,null,null,null,null,null,null,null,null,null,0]
[null,72,null,null,null,null,null,null,null,null,null,null,null,null,0]
[null,73,null,null,null,null,null,null,null,null,null,null,null,null,0]
[null,74,null,null,null,null,null,null,null,null,null,null,null,null,0]
[null,75,null,null,null,null,null,null,null,null,null,null,null,null,0]
[null,76,null,null,null,null,null,null,null,null,null,null,null,null,0]
[null,77,null,null,null,null,null,null,null,null,null,null,null,null,0]
[null,78,null,null,null,null,null,null,null,null,null,null,null,null,0]
[null,79,null,null,null,null,null,null,null,null,null,null,null,null,0]
[null,80,null,null,null,null,null,null,null,null,null,null,null,null,0]
[null,81,null,null,null,null,null,null,null,null,null,null,null,null,0]
[null,82,null,null,null,null,null,null,null,null,null,null,null,null,0]
[null,83,null,null,null,null,null,null,null,null,null,null,null,null,0]
[null,84,null,null,null,null,null,null,null,null,null,null,null,null,0]
[null,85,null,null,null,null,null,null,null,null,null,null,null,null,0]
[null,86,null,null,null,null,null,null,null,null,null,null,null,null,0]
[null,87,null,null,null,null,null,null,null,null,null,null,null,null,0]
[null,88,null,null,null,null,null,null,null,null,null,null,null,null,0]
[null,89,null,null,null,null,null,null,null,null,null,null,null,null,0]
[null,90,null,null,null,null,null,null,null,null,null,null,null,null,0]
[null,91,null,null,null,null,null,null,null,null,null,null,null,null,0]
[null,92,null,null,null,null,null,null,null,null,null,null,null,null,0]
[null,93,null,null,null,null,null,null,null,null,null,null,null,null,0]
[null,94,null,null,null,null,null,null,null,null,null,null,null,null,0]
[null,95,null,null,null,null,null,null,null,null,null,null,null,null,0]
[null,96,null,null,null,null,null,null,null,null,null,null,null,null,0]
[null,97,null,null,null,null,null,null,null,null,null,null,null,null,0]
[null,98,null,null,null,null,null,null,null,null,null,null,null,null,0]
[null,99,null,null,null,null,null,null,null,null,null,null,null,null,0]
[null,100,null,null,null,null,null,null,null,null,null,null,null,null,0]
[null,101,null,null,null,null,null,null,null,null,null,null,null,null,0]
[null,102,null,null,null,null,null,null,null,null,null,null,null,null,0]
[null,103,null,null,null,null,null,null,null,null,null,null,null,null,0]
[null,104,null,null,null,null,null,null,null,null,null,null,null,null,0]
[null,105,null,null,null,null,null,null,null,null,null,null,null,null,0]
[null,106,null,null,null,null,null,null,null,null,null,null,null,null,0]
[null,107,null,null,null,null,null,null,null,null,null,null,null,null,0]
[null,108,null,null,null,null,null,null,null,null,null,null,null,null,0]
[null,109,null,null,null,null,null,null,null,null,null,null,null,null,0]
[null,110,null,null,null,null,null,null,null,null,null,null,null,null,0]
[null,111,null,null,null,null,null,null,null,null,null,null,null,null,0]
[null,112,null,null,null,null,null,null,null,null,null,null,null,null,0]
[null,113,null,null,null,null,null,null,null,null,null,null,null,null,0]
[null,114,null,null,null,null,null,null,null,null,null,null,null,null,0]
[null,115,null,null,null,null,null,null,null,null,null,null,null,null,0]
[null,116,null,null,null,null,null,null,null,null,null,null,null,null,0]
[null,117,null,null,null,null,null,null,null,null,null,null,null,null,0]
[null,118,null,null,null,null,null,null,null,null,null,null,null,null,0]
[null,119,null,null,null,null,null,null,null,null,null,null,null,null,0]
[null,120,null,null,null,null,null,null,null,null,null,null,null,null,0]
[null,121,null,null,null,null,null,null,null,null,null,null,null,null,0]
[null,122,null,null,null,null,null,null,null,null,null,null,null,null,0]
[null,123,null,null,null,null,null,null,null,null,null,null,null,null,0]
[null,124,null,null,null,null,null,null,null,null,null,null,null,null,0]
[null,125,null,null,null,null,null,null,null,null,null,null,null,null,0]
[null,126,null,null,null,null,null,null,null,null,null,null,null,null,0]
[null,127,null,null,null,null,null,null,null,null,null,null,null,null,0]
[null,128,null,null,null,null,null,null,null,null,null,null,null,null,0]
[null,129,null,null,null,null,null,null,null,null,null,null,null,null,0]
[null,130,null,null,null,null,null,null,null,null,null,null,null,null,0]
[null,131,null,null,null,null,null,null,null,null,null,null,null,null,{"$f":"SUM(E138:N138)","v":0}]
[null,132,null,null,null,null,null,null,null,null,null,null,null,null,0]
[null,133,null,null,null,null,null,null,null,null,null,null,null,null,0]
[null,134,null,null,null,null,null,null,null,null,null,null,null,null,0]
[null,135,null,null,null,null,null,null,null,null,null,null,null,null,0]
[null,136,null,null,null,null,null,null,null,null,null,null,null,null,0]
[null,137,null,null,null,null,null,null,null,null,null,null,null,null,0]
[null,138,null,null,null,null,null,null,null,null,null,null,null,null,0]
[]
[]
[]
[]
[]
[]
[]
[]
[]
[]
[]
[]
[]
[]
[]
[]
[]
[]
[]
[null,null,null,null,null,null,null,null,null,null,null,{"$f":"IF(J165>=60,\"CLASIFICADO A 60 Km LIBRE y 80 Km NOVICIO\",IF(J165>=40,\"CLASIFICADO A 40 Km LIBRE y 60 Km NOVICIO\",\"\"))","v":""}]

{"sheet":"BINOMIOS ABIERTA","index":20,"n_rows":165,"n_cols":17,"rows_kept":165,"cut":false,"hidden":false,"merged":[[1,1,1,16],[2,1,2,16],[4,1,4,3],[4,6,4,16],[5,6,5,16]]}
[]
[null,"PUNTAJE  ACUMULADO"]
[null,"CATEGORÍA BINOMIOS ABIERTA"]
[]
[null,"BINOMIOS ABIERTA",null,null,null,null,"PUNTAJES"]
[null,null,null,null,null,null,2014]
[null,null,"CODIGO","JINETE","CODIGO","CABALLO","I CHONE","II CHONE","III CHONE","IV CHONE","V CHONE","VI CHONE","VII CHONE","VIII CHONE","IX CHONE","X CHONE","ACUMULADO"]
[null,1,"A045","MORABOWEN CESAR","C329","SERENATA CMB",152,null,170,null,154.94499999999999,null,145.476,null,152.76,null,{"$f":"+O8+K8+I8+G8","v":629.70499999999993}]
[null,2,"A035","PORTILLA FELIPE","C204","AR ALBATSYN",null,101.304,170,null,null,null,161.63999999999999,null,120.60000000000001,165.48999999999998,{"$f":"SUM(I9:P9)","v":617.73}]
[null,3,"A137","ESPINOZA JUAN SEBASTIAN","C397","KALA",96.6,null,null,null,null,156.75,null,165,null,174.2,{"$f":"SUM(G10:P10)","v":592.54999999999995}]
[null,4,"A200","MANCHENO GALO PATRICIO","C382","SICOTICO",null,null,161.5,null,154.94499999999999,null,153.55799999999999,null,102.51,null,572.51300000000003]
[null,5,"A058","RIBADENEIRA ARTURO","C188","FRODO",null,null,240,null,null,null,null,null,null,241.6,481.6]
[null,6,"A172","BURBANO VILLAVICENCIO JAIME","C097","CENTAURO",null,null,null,null,null,165,null,156.75,null,148.07,469.82]
[null,7,"A192","LOZADA JOSE ARMANDO","C252","BIANCA",112,null,null,151.20000000000002,null,148.5,null,null,null,null,411.70000000000005]
[null,8,"A092","VINTIMILLA PABLO","C343","PV RIGUEL",null,null,null,240,null,156.75,null,null,null,null,396.75]
[null,9,"A092","VINTIMILLA PABLO","C252","BIANCA",null,null,null,null,null,null,null,165,null,229.51999999999998,394.52]
[null,10,"A125","FALCONI FRANCISCO","C165","DIAMANTE",null,null,77.039999999999992,null,75.492000000000004,null,null,null,114.57000000000001,86.800000000000011,353.90199999999999]
[null,11,"A055","WEEMAELS NATHALIE","C119","LLUVIA CMB",null,null,null,168,163.1,null,null,null,null,null,331.1]
[null,12,"A201","ALLAICO JOSE EMILIO","C333","KADIN",null,null,null,159.6,null,null,null,null,null,156.78,316.38]
[null,13,"A067","CANDO MARIO","C257","AS CHAGRA",null,null,null,null,146.79,null,null,null,160.80000000000001,null,307.59000000000003]
[null,14,"A123","SAMPER ALVARO","C371","CARRUZO",null,null,null,null,null,null,161.63999999999999,null,144.72000000000003,null,306.36]
[null,15,"A058","RIBADENEIRA ARTURO","C163","AR SEGOVIA",null,null,null,null,163.1,null,null,null,136.68,null,299.77999999999997]
[null,16,"A033","SERRANO ARMANDO JOSE","C206","AS GITANA",null,null,null,null,null,null,153.55799999999999,null,128.64000000000001,null,282.19799999999998]
[null,17,"A046","NOBOA MAURICIO","C361","LIA",null,null,null,null,121.16,null,null,null,152.76,null,273.91999999999996]
[null,18,"A171","VELEZ MENA MARIA CONSUELO","C304","ZA SOFIA",null,106.932,null,null,null,165,null,null,null,null,271.93200000000002]
[null,19,"A056","MORILLO MAURICIO","C106","ZEUS LL",null,null,null,null,null,null,83.410000000000011,null,160.80000000000001,null,244.21000000000004]
[null,20,"A060","RECALDE JUAN JOSE","C200","MULATA",null,95.676000000000002,null,null,146.79,null,null,null,null,null,242.46600000000001]
[null,21,"A060","RECALDE JUAN JOSE","C425","AR BOMBON",null,null,null,null,null,null,120.44000000000001,null,108.54,null,228.98000000000002]
[null,22,"A059","ALMEIDA AYALA HECTOR","C115","AVENTURERO",null,null,null,228,null,null,null,null,null,null,228]
[null,23,"A055","WEEMAELS NATHALIE","C093","CG ALLASKI",null,null,228,null,null,null,null,null,null,null,228]
[null,24,"A171","VELEZ MENA MARIA CONSUELO","C069","KAFIR",null,null,null,null,null,null,null,null,null,217.44,217.44]
[null,25,"A142","GONZALEZ SEBASTIAN","C406","ELECTRIFY VO",null,null,null,null,null,90,null,90,null,null,180]
[null,26,"A051","GUARDERAS SEBASTIAN","C200","MULATA",null,null,null,null,null,null,null,null,null,174.2,174.2]
[null,27,"A200","MALO DIANA","C294","REMOLACHA",null,null,null,168,null,null,null,null,null,null,168]
[null,28,"A187","MOYA MIGUEL ANGEL","C059","GS RASHID",null,null,null,null,79.685999999999993,null,null,null,null,82.460000000000008,162.14600000000002]
[null,29,"A190","LOZADA ARMANDO","C202","RIGUEL",null,null,161.5,null,null,null,null,null,null,null,161.5]
[null,30,"A058","RIBADENEIRA ARTURO","C175","CLAW",null,160.80000000000001,null,null,null,null,null,null,null,null,160.80000000000001]
[null,31,"A130","MALO JAIME","C234","EL PADRINO",160,null,null,null,null,null,null,null,null,null,160]
[null,32,"A058","RIBADENEIRA ARTURO","C174","ZT SATFFANTDU",null,null,null,159.6,null,null,null,null,null,null,159.6]
[null,33,"A081","KOPPEL OSWALDO","C341","TENGRI",null,152.76,null,null,null,null,null,null,null,null,152.76]
[null,34,"A081","KOPPEL OSWALDO","C282","MAGIC MENES",64.399999999999991,null,null,86.4,null,null,null,null,null,null,150.80000000000001]
[null,35,"A059","ALMEIDA AYALA HECTOR","C286","NEGRO EG",null,null,null,null,null,148.5,null,null,null,null,{"$f":"SUM(G42:P42)","v":148.5}]
[null,36,"A021","ALVEAR JUAN CARLOS","C283","MAGIC ONE",null,null,null,null,null,null,145.476,null,null,null,145.476]
[null,37,"A092","VINTIMILLA PABLO","C074","WISKY",null,null,null,null,null,null,null,null,144.72000000000003,null,144.72000000000003]
[null,38,"A177","RAMIREZ FABRICIO","C206","AS GITANA",null,null,72.759999999999991,null,71.297999999999988,null,null,null,null,null,144.05799999999999]
[null,39,"A033","SERRANO ARMANDO JOSE","C365","AS CHAGRA",null,null,null,null,null,null,null,null,null,139.35999999999999,139.35999999999999]
[null,40,"A056","MORILLO MAURICIO","C094","MISTERIO",null,120.60000000000001,null,null,null,null,null,null,null,null,120.60000000000001]
[null,41,"J100","HURTADO HECTOR","C074","WISKY",null,null,null,null,null,null,null,120,null,null,120]
[null,42,"A130","MALO JAIME","C393","JASPER",null,null,null,null,null,null,null,120,null,null,120]
[null,43,"A089","ORTIZ FERNANDO","C210","CHUQUIRAGUA",null,null,null,null,115.10199999999999,null,null,null,null,null,115.10199999999999]
[null,44,"A172","BURBANO VILLAVICENCIO","C140","CS SADIQ",null,112.56,null,null,null,null,null,null,null,null,112.56]
[null,45,"A202","ALLAICO JOSE EMILIO","C004","TEQUILA",106.39999999999999,null,null,null,null,null,null,null,null,null,106.39999999999999]
[null,46,"A130","MALO JAIME","C392","MARISCAL",null,null,null,96,null,null,null,null,null,null,96]
[null,47,"A143","LUGMAÑA JUAN CARLOS","C391","KALAHARI",null,null,null,91.199999999999989,null,null,null,null,null,null,91.199999999999989]
[null,48,"A176","ESCOBAR LUIS","C407","DORO",null,null,null,null,null,90,null,null,null,null,90]
[null,49,"A204","PLUAS JUNIOR","C408","GEMA DC",null,null,null,null,null,null,null,90,null,null,90]
[null,50,"A026","LETORT MENA JOSE","C079","SHAMIR SOLIN",null,null,null,null,null,null,87.800000000000011,null,null,null,87.800000000000011]
[null,51,"A125","FALCONI FRANCISCO","C165","DIAMANTE",null,null,null,null,null,null,null,null,null,86.800000000000011,86.800000000000011]
[null,52,"A021","ALVEAR JUAN CARLOS","C387","AGUARDIENTICO",null,null,null,null,null,null,null,null,null,86.800000000000011,86.800000000000011]
[null,53,"A033","SERRANO ARMANDO JOSE","C357","MD YALA",null,null,85.6,null,null,null,null,null,null,null,85.6]
[null,54,"A192","LOZADA JOSE ARMANDO","C414","GH PSHYRO",null,null,null,null,null,null,null,85.5,null,null,85.5]
[null,55,"A056","MORILLO MAURICIO","C089","GR COMPADRE",null,null,null,null,83.88,null,null,null,null,null,83.88]
[null,56,"A186","DIAZ KOLICH DANITZA","C240","KALIFA",null,null,null,null,null,null,null,null,null,82.460000000000008,82.460000000000008]
[null,57,"A185","BURBANO SERRANO JAIME ROLANDO","C286","NEGRO EG",null,null,null,81.599999999999994,null,null,null,null,null,null,81.599999999999994]
[null,58,"A201","ULLOA GORDON FERNANDO","C238","CALEÑA CMB",null,null,81.319999999999993,null,null,null,null,null,null,null,81.319999999999993]
[null,59,"A207","CASTRO TRAJANO","C412","BRISA",null,null,null,null,null,null,null,81,null,null,81]
[null,60,"A055","WEEMAELS NATHALIE","C360","RO EVITA",null,null,null,null,null,null,null,null,80.400000000000006,null,80.400000000000006]
[null,61,"A023","SERRANO JUAN CARLOS","C427","FLACA",null,null,null,null,null,null,79.02000000000001,null,null,null,79.02000000000001]
[null,62,"A056","MORILLO MAURICIO","C386","LUCKY",null,null,null,null,null,null,null,null,null,78.120000000000019,78.120000000000019]
[null,63,"A202","SORIA JUAN MANUEL","C307","TABATHA",null,null,null,76.800000000000011,null,null,null,null,null,null,76.800000000000011]
[null,64,"A059","ALMEIDA AYALA HECTOR","C114","KAFIR HA",null,null,null,null,null,null,null,null,76.38,null,76.38]
[null,65,"A201","ULLOA GORDON FERNANDO","C119","LLUVIA CMB",61.179999999999986,null,null,null,null,null,null,null,null,null,61.179999999999986]
[null,66,"A079","CUSME EDISON","C400","CM MAGNUM ROSE",57.959999999999994,null,null,null,null,null,null,null,null,null,57.959999999999994]
[null,67,"A046","NOBOA MAURICIO","C366","MAGO GH",54.739999999999988,null,null,null,null,null,null,null,null,null,{"$f":"SUM(G74:P74)","v":54.739999999999988}]
[null,68,null,null,null,null,null,null,null,null,null,null,null,null,null,null,{"$f":"SUM(G75:P75)","v":0}]
[null,69,null,null,null,null,null,null,null,null,null,null,null,null,null,null,0]
[null,70,null,null,null,null,null,null,null,null,null,null,null,null,null,null,0]
[null,71,null,null,null,null,null,null,null,null,null,null,null,null,null,null,0]
[null,72,null,null,null,null,null,null,null,null,null,null,null,null,null,null,0]
[null,73,null,null,null,null,null,null,null,null,null,null,null,null,null,null,0]
[null,74,null,null,null,null,null,null,null,null,null,null,null,null,null,null,0]
[null,75,null,null,null,null,null,null,null,null,null,null,null,null,null,null,0]
[null,76,null,null,null,null,null,null,null,null,null,null,null,null,null,null,0]
[null,77,null,null,null,null,null,null,null,null,null,null,null,null,null,null,0]
[null,78,null,null,null,null,null,null,null,null,null,null,null,null,null,null,0]
[null,79,null,null,null,null,null,null,null,null,null,null,null,null,null,null,0]
[null,80,null,null,null,null,null,null,null,null,null,null,null,null,null,null,0]
[null,81,null,null,null,null,null,null,null,null,null,null,null,null,null,null,0]
[null,82,null,null,null,null,null,null,null,null,null,null,null,null,null,null,0]
[null,83,null,null,null,null,null,null,null,null,null,null,null,null,null,null,0]
[null,84,null,null,null,null,null,null,null,null,null,null,null,null,null,null,0]
[null,85,null,null,null,null,null,null,null,null,null,null,null,null,null,null,0]
[null,86,null,null,null,null,null,null,null,null,null,null,null,null,null,null,0]
[null,87,null,null,null,null,null,null,null,null,null,null,null,null,null,null,0]
[null,88,null,null,null,null,null,null,null,null,null,null,null,null,null,null,0]
[null,89,null,null,null,null,null,null,null,null,null,null,null,null,null,null,0]
[null,90,null,null,null,null,null,null,null,null,null,null,null,null,null,null,0]
[null,91,null,null,null,null,null,null,null,null,null,null,null,null,null,null,0]
[null,92,null,null,null,null,null,null,null,null,null,null,null,null,null,null,0]
[null,93,null,null,null,null,null,null,null,null,null,null,null,null,null,null,0]
[null,94,null,null,null,null,null,null,null,null,null,null,null,null,null,null,0]
[null,95,null,null,null,null,null,null,null,null,null,null,null,null,null,null,0]
[null,96,null,null,null,null,null,null,null,null,null,null,null,null,null,null,0]
[null,97,null,null,null,null,null,null,null,null,null,null,null,null,null,null,0]
[null,98,null,null,null,null,null,null,null,null,null,null,null,null,null,null,0]
[null,99,null,null,null,null,null,null,null,null,null,null,null,null,null,null,0]
[null,100,null,null,null,null,null,null,null,null,null,null,null,null,null,null,0]
[null,101,null,null,null,null,null,null,null,null,null,null,null,null,null,null,0]
[null,102,null,null,null,null,null,null,null,null,null,null,null,null,null,null,0]
[null,103,null,null,null,null,null,null,null,null,null,null,null,null,null,null,0]
[null,104,null,null,null,null,null,null,null,null,null,null,null,null,null,null,0]
[null,105,null,null,null,null,null,null,null,null,null,null,null,null,null,null,0]
[null,106,null,null,null,null,null,null,null,null,null,null,null,null,null,null,0]
[null,107,null,null,null,null,null,null,null,null,null,null,null,null,null,null,0]
[null,108,null,null,null,null,null,null,null,null,null,null,null,null,null,null,0]
[null,109,null,null,null,null,null,null,null,null,null,null,null,null,null,null,0]
[null,110,null,null,null,null,null,null,null,null,null,null,null,null,null,null,0]
[null,111,null,null,null,null,null,null,null,null,null,null,null,null,null,null,0]
[null,112,null,null,null,null,null,null,null,null,null,null,null,null,null,null,0]
[null,113,null,null,null,null,null,null,null,null,null,null,null,null,null,null,0]
[null,114,null,null,null,null,null,null,null,null,null,null,null,null,null,null,0]
[null,115,null,null,null,null,null,null,null,null,null,null,null,null,null,null,0]
[null,116,null,null,null,null,null,null,null,null,null,null,null,null,null,null,0]
[null,117,null,null,null,null,null,null,null,null,null,null,null,null,null,null,0]
[null,118,null,null,null,null,null,null,null,null,null,null,null,null,null,null,0]
[null,119,null,null,null,null,null,null,null,null,null,null,null,null,null,null,0]
[null,120,null,null,null,null,null,null,null,null,null,null,null,null,null,null,0]
[null,121,null,null,null,null,null,null,null,null,null,null,null,null,null,null,0]
[null,122,null,null,null,null,null,null,null,null,null,null,null,null,null,null,0]
[null,123,null,null,null,null,null,null,null,null,null,null,null,null,null,null,0]
[null,124,null,null,null,null,null,null,null,null,null,null,null,null,null,null,0]
[null,125,null,null,null,null,null,null,null,null,null,null,null,null,null,null,0]
[null,126,null,null,null,null,null,null,null,null,null,null,null,null,null,null,0]
[null,127,null,null,null,null,null,null,null,null,null,null,null,null,null,null,0]
[null,128,null,null,null,null,null,null,null,null,null,null,null,null,null,null,0]
[null,129,null,null,null,null,null,null,null,null,null,null,null,null,null,null,0]
[null,130,null,null,null,null,null,null,null,null,null,null,null,null,null,null,{"$f":"SUM(G137:P137)","v":0}]
[null,131,null,null,null,null,null,null,null,null,null,null,null,null,null,null,0]
[null,132,null,null,null,null,null,null,null,null,null,null,null,null,null,null,0]
[null,133,null,null,null,null,null,null,null,null,null,null,null,null,null,null,0]
[null,134,null,null,null,null,null,null,null,null,null,null,null,null,null,null,0]
[null,135,null,null,null,null,null,null,null,null,null,null,null,null,null,null,0]
[null,136,null,null,null,null,null,null,null,null,null,null,null,null,null,null,0]
[null,137,null,null,null,null,null,null,null,null,null,null,null,null,null,null,0]
[null,138,null,null,null,null,null,null,null,null,null,null,null,null,null,null,0]
[]
[]
[]
[]
[]
[]
[]
[]
[]
[]
[]
[]
[]
[]
[]
[]
[]
[]
[]
[null,null,null,null,null,null,null,null,null,null,null,null,null,{"$f":"IF(L165>=60,\"CLASIFICADO A 60 Km LIBRE y 80 Km NOVICIO\",IF(L165>=40,\"CLASIFICADO A 40 Km LIBRE y 60 Km NOVICIO\",\"\"))","v":""}]

{"sheet":"BINOMIOS LIVIANOS","index":21,"n_rows":165,"n_cols":17,"rows_kept":165,"cut":false,"hidden":false,"merged":[[1,1,1,16],[2,1,2,16],[4,1,4,3],[4,6,4,16],[5,6,5,16]]}
[]
[null,"PUNTAJE  ACUMULADO"]
[null,"CATEGORÍA BINOMIOS LIVIANOS"]
[]
[null,"BINOMIOS LIVIANOS",null,null,null,null,"PUNTAJES"]
[null,null,null,null,null,null,2014]
[null,null,"CODIGO","JINETE","CODIGO","CABALLO","I CHONE","II CHONE","III CHONE","IV CHONE","V CHONE","VI CHONE","VII CHONE","VIII CHONE","IX CHONE","X CHONE","ACUMULADO"]
[null,1,"J047","LETORT DUEÑAS JOSE IGNACIO","C154","SHAKIRA",null,null,161.5,null,163.1,null,null,null,160.80000000000001,174.2,{"$f":"SUM(I8:P8)","v":659.6}]
[null,2,"A097","LETORT DUEÑAS BERNARDA","C046","AMARETO",null,144.72000000000003,null,null,null,null,87.800000000000011,null,144.72000000000003,165.48999999999998,{"$f":"SUM(G9:P9)","v":542.73}]
[null,3,"J034","ANDRADE JOSE DANIEL","C134","JUPITER",null,160.80000000000001,null,null,null,165,161.63999999999999,null,null,null,487.44]
[null,4,"J008","GOMEZ ALEXANDER","C148","FUERTE",null,null,null,228,231.62899999999999,null,null,null,null,null,459.62900000000002]
[null,5,"J013","MORILLO SERGIO","C072","QUITA PENAS",null,null,170,null,243.82,null,null,null,null,null,413.82]
[null,6,"J034","ANDRADE JOSE DANIEL","C398","OM EL FIRST CHANCE",160,null,240,null,null,null,null,null,null,null,400]
[null,7,"J057","GUARDERAS JOSE GABRIEL","C147","CAMARON",null,101.304,null,null,154.94499999999999,null,null,null,76.38,null,332.62900000000002]
[null,8,"J055","LOYOLA CLAUDIA MARIA","C197","PATACON",152,null,null,168,null,null,null,null,null,null,320]
[null,9,"J100","MASAPANTA KEVIN","C261","GRINGO",null,null,null,null,163.1,null,null,null,136.68,null,299.77999999999997]
[null,10,"J091","BERREZUETA DELGADO PABLO SANTIAGO","C130","ESPIRITU DEL ECUADOR",112,null,170,null,null,null,null,null,null,null,282]
[null,11,"I003","JARAMILLO BENITO JOSE","C029","MILONGA",null,112.56,null,null,163.1,null,null,null,null,null,275.65999999999997]
[null,12,"J059","DUBACH CAROLINA","C174","ZT SATFANTDU",null,112.56,null,null,null,null,145.476,null,null,null,258.036]
[null,13,"J034","ANDRADE JOSE DANIEL","C413","SOLOANDA",null,null,null,null,null,null,null,90,160.80000000000001,null,250.8]
[null,14,"J031","RIBADENEIRA SOFIA","C174","ZT SATFFANTDU",null,null,null,null,null,null,null,null,null,241.6,241.6]
[null,39,"J087","MALO TORAL DAVID","C175","CLAW",null,null,null,240,null,null,null,null,null,null,240]
[null,15,"J021","CORNEJO BURNEO MANUEL","C135","CARAGUAY",null,null,null,null,null,null,83.410000000000011,null,152.76,null,236.17000000000002]
[null,16,"M042","TORRES UGALDE RAFAEL ESTEBAN","C403","NEVADA",61.179999999999986,null,null,86.4,null,null,null,85.5,null,null,233.07999999999998]
[null,17,"J063","GONZALEZ BERNARDA","C232","ASRAEL",null,null,228,null,null,null,null,null,null,null,228]
[null,18,"J063","GONZALEZ BERNARDA","C096","AR FAISAN",null,null,null,null,219.43799999999999,null,null,null,null,null,219.43799999999999]
[null,19,"J079","JARAMILLO MANUELA","C019","NICOLAS",null,136.68,null,null,null,null,79.02000000000001,null,null,null,215.70000000000002]
[null,20,"M039","TORRES GIORDANO ALEJANDRO","C398","FRANCISCO",null,null,null,91.199999999999989,null,null,null,90,null,null,181.2]
[null,21,"M037","MARIN CESAR JAVIER","C409","JOYA",null,null,null,null,null,90,null,90,null,null,180]
[null,22,"J096","LOYOLA TEODORO ANDRES","C278","JUGUETE",null,null,null,168,null,null,null,null,null,null,168]
[null,23,"J063","GONZALEZ BERNARDA","C004","TEQUILA",null,null,null,null,null,165,null,null,null,null,165]
[null,24,"J079","JARAMILLO MANUELA","C404","SALMA",null,null,null,null,79.685999999999993,null,null,null,null,82.460000000000008,162.14600000000002]
[null,25,"J059","DUBACH CAROLINA","C096","AR FAISAN",null,null,161.5,null,null,null,null,null,null,null,161.5]
[null,26,"M013","JARAMILLO BENITO","C367","NICOLAS",null,null,null,null,null,null,null,null,160.80000000000001,null,160.80000000000001]
[null,27,"J019","DARQUEA RICARDO","C143","ALI",null,null,null,null,154.94499999999999,null,null,null,null,null,154.94499999999999]
[null,28,"J043","MORENO DANIEL","C261","GRINGO",null,null,null,null,null,null,153.55799999999999,null,null,null,153.55799999999999]
[null,38,"J087","MALO TORAL DAVID","C234","EL PADRINO",null,152.76,null,null,null,null,null,null,null,null,152.76]
[null,29,"J020","SERRANO FELIPE","C143","ALI",null,null,null,null,null,null,137.39399999999998,null,null,null,137.39399999999998]
[null,30,"J021","CORNEJO BURNEO MANUEL","C189","HAAKIR",null,120.60000000000001,null,null,null,null,null,null,null,null,120.60000000000001]
[null,31,"J059","DUBACH CAROLINA","C361","ANGOSTURA FRODO",null,null,null,null,null,null,null,null,120.60000000000001,null,120.60000000000001]
[null,32,"J100","HURTADO HECTOR","C074","WISKY",null,null,null,null,null,null,120,null,null,null,{"$f":"SUM(G41:P41)","v":120}]
[null,33,"J099","RODITTI CARVAJAL CRISTORO","C337","CAPORAL",null,106.932,null,null,null,null,null,null,null,null,106.932]
[null,34,"J063","GONZALEZ BERNARDA","C333","KADIN",106.39999999999999,null,null,null,null,null,null,null,null,null,106.39999999999999]
[null,35,"J059","DUBACH CAROLINA","C390","MIDAS",null,null,null,96,null,null,null,null,null,null,96]
[null,36,"J098","MORENO PAULINA","C394","POLACO",null,null,null,96,null,null,null,null,null,null,96]
[null,37,"J099","DARQUEA ANA MARIA","C384","GALAN",null,null,null,91.199999999999989,null,null,null,null,null,null,91.199999999999989]
[null,40,"J108","DAVALOS JOAQUINA","C175","CLAW",null,null,null,null,null,null,87.800000000000011,null,null,null,87.800000000000011]
[null,41,"I003","JARAMILLO BENITO JOSE","C237","CHULPI",null,null,null,null,null,null,87.800000000000011,null,null,null,87.800000000000011]
[null,42,"M040","MORABOWEN MOSQUERA CESAR","C238","CALEÑA CMB",null,null,null,null,null,null,null,null,null,86.800000000000011,86.800000000000011]
[null,43,"J021","CORNEJO MANUEL","C371","FLACA",null,null,null,null,null,null,null,null,null,86.800000000000011,86.800000000000011]
[null,44,"M037","LOPEZ JUAN RAFAEL","C397","RAYO",null,null,null,null,null,null,null,85.5,null,null,85.5]
[null,45,"J101","PALACIOS GUIDO","C418","COCHA",null,null,null,null,null,null,null,85.5,null,null,85.5]
[null,46,"J109","DARQUEA ANA MARIA","C134","JUPITER",null,null,null,null,83.88,null,null,null,null,null,83.88]
[null,47,"M029","JIJON SOFIA","C174","ZT SATFANTDU",null,null,null,null,83.88,null,null,null,null,null,83.88]
[null,48,"M036","MOSCOSO JUAN PABLO","C395","JUVENTINO",null,null,null,null,null,null,null,81,null,null,81]
[null,49,"M012","MAZAPANTA KEVIN","C372","NABU",null,null,null,null,null,null,null,null,80.400000000000006,null,80.400000000000006]
[null,50,"M022","MORABOWEN MOSQUERA CESAR","C399","CALENA CMB",null,null,null,null,79.685999999999993,null,null,null,null,null,79.685999999999993]
[null,51,"J098","SALTIVERI MARIA JESUS","C337","CAPORAL",null,null,null,null,null,null,null,null,null,78.120000000000019,78.120000000000019]
[null,52,"M036","MALO TOMAS","C396","TUMBA HOMBRES",64.399999999999991,null,null,null,null,null,null,null,null,null,64.399999999999991]
[null,53,"J091","RODITTI CRISTOFORO","C240","KALIFA",64.399999999999991,null,null,null,null,null,null,null,null,null,64.399999999999991]
[null,54,"J101","GRANIZO GARNADA FABIANA","C334","CAPORAL",61.179999999999986,null,null,null,null,null,null,null,null,null,61.179999999999986]
[null,55,"J102","SALTIVERI MARIA JESUS","C243","DUBAI",57.959999999999994,null,null,null,null,null,null,null,null,null,57.959999999999994]
[null,56,"J088","SIMON NICOLAS","C238","CALEÑA CMB",54.739999999999988,null,null,null,null,null,null,null,null,null,54.739999999999988]
[null,57,"J096","HURTADO HECTOR","C393","ABUDAVI",51.519999999999996,null,null,null,null,null,null,null,null,null,51.519999999999996]
[null,58,null,null,null,null,null,null,null,null,null,null,null,null,null,null,{"$f":"SUM(G65:P65)","v":0}]
[null,59,null,null,null,null,null,null,null,null,null,null,null,null,null,null,0]
[null,60,null,null,null,null,null,null,null,null,null,null,null,null,null,null,0]
[null,61,null,null,null,null,null,null,null,null,null,null,null,null,null,null,0]
[null,62,null,null,null,null,null,null,null,null,null,null,null,null,null,null,0]
[null,63,null,null,null,null,null,null,null,null,null,null,null,null,null,null,0]
[null,64,null,null,null,null,null,null,null,null,null,null,null,null,null,null,0]
[null,65,null,null,null,null,null,null,null,null,null,null,null,null,null,null,0]
[null,66,null,null,null,null,null,null,null,null,null,null,null,null,null,null,0]
[null,67,null,null,null,null,null,null,null,null,null,null,null,null,null,null,0]
[null,68,null,null,null,null,null,null,null,null,null,null,null,null,null,null,0]
[null,69,null,null,null,null,null,null,null,null,null,null,null,null,null,null,0]
[null,70,null,null,null,null,null,null,null,null,null,null,null,null,null,null,0]
[null,71,null,null,null,null,null,null,null,null,null,null,null,null,null,null,0]
[null,72,null,null,null,null,null,null,null,null,null,null,null,null,null,null,0]
[null,73,null,null,null,null,null,null,null,null,null,null,null,null,null,null,0]
[null,74,null,null,null,null,null,null,null,null,null,null,null,null,null,null,{"$f":"SUM(G81:P81)","v":0}]
[null,75,null,null,null,null,null,null,null,null,null,null,null,null,null,null,0]
[null,76,null,null,null,null,null,null,null,null,null,null,null,null,null,null,0]
[null,77,null,null,null,null,null,null,null,null,null,null,null,null,null,null,0]
[null,78,null,null,null,null,null,null,null,null,null,null,null,null,null,null,0]
[null,79,null,null,null,null,null,null,null,null,null,null,null,null,null,null,0]
[null,80,null,null,null,null,null,null,null,null,null,null,null,null,null,null,0]
[null,81,null,null,null,null,null,null,null,null,null,null,null,null,null,null,0]
[null,82,null,null,null,null,null,null,null,null,null,null,null,null,null,null,0]
[null,83,null,null,null,null,null,null,null,null,null,null,null,null,null,null,0]
[null,84,null,null,null,null,null,null,null,null,null,null,null,null,null,null,0]
[null,85,null,null,null,null,null,null,null,null,null,null,null,null,null,null,0]
[null,86,null,null,null,null,null,null,null,null,null,null,null,null,null,null,0]
[null,87,null,null,null,null,null,null,null,null,null,null,null,null,null,null,0]
[null,88,null,null,null,null,null,null,null,null,null,null,null,null,null,null,0]
[null,89,null,null,null,null,null,null,null,null,null,null,null,null,null,null,0]
[null,90,null,null,null,null,null,null,null,null,null,null,null,null,null,null,0]
[null,91,null,null,null,null,null,null,null,null,null,null,null,null,null,null,0]
[null,92,null,null,null,null,null,null,null,null,null,null,null,null,null,null,0]
[null,93,null,null,null,null,null,null,null,null,null,null,null,null,null,null,0]
[null,94,null,null,null,null,null,null,null,null,null,null,null,null,null,null,0]
[null,95,null,null,null,null,null,null,null,null,null,null,null,null,null,null,0]
[null,96,null,null,null,null,null,null,null,null,null,null,null,null,null,null,0]
[null,97,null,null,null,null,null,null,null,null,null,null,null,null,null,null,0]
[null,98,null,null,null,null,null,null,null,null,null,null,null,null,null,null,0]
[null,99,null,null,null,null,null,null,null,null,null,null,null,null,null,null,0]
[null,100,null,null,null,null,null,null,null,null,null,null,null,null,null,null,0]
[null,101,null,null,null,null,null,null,null,null,null,null,null,null,null,null,0]
[null,102,null,null,null,null,null,null,null,null,null,null,null,null,null,null,0]
[null,103,null,null,null,null,null,null,null,null,null,null,null,null,null,null,0]
[null,104,null,null,null,null,null,null,null,null,null,null,null,null,null,null,0]
[null,105,null,null,null,null,null,null,null,null,null,null,null,null,null,null,0]
[null,106,null,null,null,null,null,null,null,null,null,null,null,null,null,null,0]
[null,107,null,null,null,null,null,null,null,null,null,null,null,null,null,null,0]
[null,108,null,null,null,null,null,null,null,null,null,null,null,null,null,null,0]
[null,109,null,null,null,null,null,null,null,null,null,null,null,null,null,null,0]
[null,110,null,null,null,null,null,null,null,null,null,null,null,null,null,null,0]
[null,111,null,null,null,null,null,null,null,null,null,null,null,null,null,null,0]
[null,112,null,null,null,null,null,null,null,null,null,null,null,null,null,null,0]
[null,113,null,null,null,null,null,null,null,null,null,null,null,null,null,null,{"$f":"SUM(G120:P120)","v":0}]
[null,114,null,null,null,null,null,null,null,null,null,null,null,null,null,null,{"$f":"SUM(G121:P121)","v":0}]
[null,115,null,null,null,null,null,null,null,null,null,null,null,null,null,null,0]
[null,116,null,null,null,null,null,null,null,null,null,null,null,null,null,null,0]
[null,117,null,null,null,null,null,null,null,null,null,null,null,null,null,null,0]
[null,118,null,null,null,null,null,null,null,null,null,null,null,null,null,null,0]
[null,119,null,null,null,null,null,null,null,null,null,null,null,null,null,null,0]
[null,120,null,null,null,null,null,null,null,null,null,null,null,null,null,null,0]
[null,121,null,null,null,null,null,null,null,null,null,null,null,null,null,null,0]
[null,122,null,null,null,null,null,null,null,null,null,null,null,null,null,null,0]
[null,123,null,null,null,null,null,null,null,null,null,null,null,null,null,null,0]
[null,124,null,null,null,null,null,null,null,null,null,null,null,null,null,null,0]
[null,125,null,null,null,null,null,null,null,null,null,null,null,null,null,null,0]
[null,126,null,null,null,null,null,null,null,null,null,null,null,null,null,null,0]
[null,127,null,null,null,null,null,null,null,null,null,null,null,null,null,null,0]
[null,128,null,null,null,null,null,null,null,null,null,null,null,null,null,null,0]
[null,129,null,null,null,null,null,null,null,null,null,null,null,null,null,null,0]
[null,130,null,null,null,null,null,null,null,null,null,null,null,null,null,null,0]
[null,131,null,null,null,null,null,null,null,null,null,null,null,null,null,null,0]
[null,132,null,null,null,null,null,null,null,null,null,null,null,null,null,null,0]
[null,133,null,null,null,null,null,null,null,null,null,null,null,null,null,null,0]
[null,134,null,null,null,null,null,null,null,null,null,null,null,null,null,null,0]
[null,135,null,null,null,null,null,null,null,null,null,null,null,null,null,null,0]
[null,136,null,null,null,null,null,null,null,null,null,null,null,null,null,null,0]
[null,137,null,null,null,null,null,null,null,null,null,null,null,null,null,null,0]
[null,138,null,null,null,null,null,null,null,null,null,null,null,null,null,null,0]
[]
[]
[]
[]
[]
[]
[]
[]
[]
[]
[]
[]
[]
[]
[]
[]
[]
[]
[]
[null,null,null,null,null,null,null,null,null,null,null,null,null,{"$f":"IF(L165>=60,\"CLASIFICADO A 60 Km LIBRE y 80 Km NOVICIO\",IF(L165>=40,\"CLASIFICADO A 40 Km LIBRE y 60 Km NOVICIO\",\"\"))","v":""}]